{"text_format":"3","workbook":"xlsx","n_sheets":6,"sheets":["Pulpit nawigacyjny","Sprzedaż","Przychód","Wydatki","Podatki","Kategorie"],"not_rendered":{"images":1,"defined_names":34},"read":"whole","date_system":"1900"}

{"sheet":"Pulpit nawigacyjny","index":0,"n_rows":20,"n_cols":8,"rows_kept":20,"merged":[[0,2,0,4],[0,6,3,7],[5,1,5,7]]}
[null,"Zestawienie zysków i strat","Za [miesiąc lub rok] kończący się [miesiąc-dzień-rok]"]
[null,"Nazwa firmy","Wyrażony w tysiącach"]
[null,"Bieżąca marża brutto [L/J]",{"$f":"IFERROR(IF(Suma_zysku_brutto=0,\"-\",Suma_zysku_brutto/Suma_przychodów_ze_sprzedaży),\"-\")","v":"-"}]
[null,"Bieżąca rentowność sprzedaży [T/J]",{"$f":"IFERROR(IF(Zysk_netto=0,\"-\",Zysk_netto/Suma_przychodów_ze_sprzedaży),\"-\")","v":"-"}]
[]
[null,"Nie modyfikuj kategorii w tym arkuszu. W przeciwnym razie formuły mogą zostać przerwane. Użyj arkusza kategorii, aby dodać kategorie i zaktualizować odpowiednie arkusze tymi wpisami. Arkusz ten będzie aktualizowany automatycznie."]
[null,"Podsumowanie","Suma za okres poprzedni","Całkowity budżet","Suma za okres\nbieżący","Suma za okres bieżący jako procent sprzedaży","Zmiana procentowa ogółem względem okresu poprzedniego","Zmiana procentowa ogółem względem budżetu"]
[null,"Suma przychodów ze sprzedaży [J]",{"$f":"SUMIFS(Przychód_ze_sprzedaży_1[Okres bieżący],Przychód_ze_sprzedaży_1[Typ przychodu ze sprzedaży],\"Przychód ze sprzedaży\")","v":0},{"$f":"SUMIFS(Przychód_ze_sprzedaży_1[Budżet],Przychód_ze_sprzedaży_1[Typ przychodu ze sprzedaży],\"Przychód ze sprzedaży\")","v":0},{"$f":"SUMIFS(Przychód_ze_sprzedaży_1[Okres bieżący],Przychód_ze_sprzedaży_1[Typ przychodu ze sprzedaży],\"Przychód ze sprzedaży\")","v":0},{"$f":"SUMIFS(Przychód_ze_sprzedaży_1[Okres bieżący jako procent sprzedaży],Przychód_ze_sprzedaży_1[Typ przychodu ze sprzedaży],\"Przychód ze sprzedaży\")","v":{"v":0,"d":"0.00%"}},{"$f":"SUMIFS(Przychód_ze_sprzedaży_1[Zmiana procentowa względem okresu poprzedniego],Przychód_ze_sprzedaży_1[Typ przychodu ze sprzedaży],\"Przychód ze sprzedaży\")","v":{"v":0,"d":"0.00%"}},{"$f":"SUMIFS(Przychód_ze_sprzedaży_1[Zmiana procentowa względem budżetu],Przychód_ze_sprzedaży_1[Typ przychodu ze sprzedaży],\"Przychód ze sprzedaży\")","v":{"v":0,"d":"0.00%"}}]
[null,"Całkowity koszt sprzedaży [K]",{"$f":"SUMIFS(Przychód_ze_sprzedaży_1[Okres bieżący],Przychód_ze_sprzedaży_1[Typ przychodu ze sprzedaży],\"Koszt sprzedaży\")","v":0},{"$f":"SUMIFS(Przychód_ze_sprzedaży_1[Budżet],Przychód_ze_sprzedaży_1[Typ przychodu ze sprzedaży],\"Koszt sprzedaży\")","v":0},{"$f":"SUMIFS(Przychód_ze_sprzedaży_1[Okres bieżący],Przychód_ze_sprzedaży_1[Typ przychodu ze sprzedaży],\"Koszt sprzedaży\")","v":0},{"$f":"SUMIFS(Przychód_ze_sprzedaży_1[Okres bieżący jako procent sprzedaży],Przychód_ze_sprzedaży_1[Typ przychodu ze sprzedaży],\"Koszt sprzedaży\")","v":{"v":0,"d":"0.00%"}},{"$f":"SUMIFS(Przychód_ze_sprzedaży_1[Zmiana procentowa względem okresu poprzedniego],Przychód_ze_sprzedaży_1[Typ przychodu ze sprzedaży],\"Koszt sprzedaży\")","v":{"v":0,"d":"0.00%"}},{"$f":"SUMIFS(Przychód_ze_sprzedaży_1[Zmiana procentowa względem budżetu],Przychód_ze_sprzedaży_1[Typ przychodu ze sprzedaży],\"Koszt sprzedaży\")","v":{"v":0,"d":"0.00%"}}]
[null,"Suma wydatków na sprzedaż i marketing [M]",{"$f":"SUMIFS(Wydatki_operacyjne[Okres poprzedni],Wydatki_operacyjne[Typ wydatku],\"Sprzedaż i marketing\")","v":0},{"$f":"SUMIFS(Wydatki_operacyjne[Budżet],Wydatki_operacyjne[Typ wydatku],\"Sprzedaż i marketing\")","v":0},{"$f":"SUMIFS(Wydatki_operacyjne[Okres bieżący],Wydatki_operacyjne[Typ wydatku],\"Sprzedaż i marketing\")","v":0},{"$f":"SUMIFS(Wydatki_operacyjne[Okres bieżący jako procent sprzedaży],Wydatki_operacyjne[Typ wydatku],\"Sprzedaż i marketing\")","v":{"v":0,"d":"0.00%"}},{"$f":"SUMIFS(Wydatki_operacyjne[Zmiana procentowa względem okresu poprzedniego],Wydatki_operacyjne[Typ wydatku],\"Sprzedaż i marketing\")","v":{"v":0,"d":"0.00%"}},{"$f":"SUMIFS(Wydatki_operacyjne[Zmiana procentowa względem budżetu],Wydatki_operacyjne[Typ wydatku],\"Sprzedaż i marketing\")","v":{"v":0,"d":"0.00%"}}]
[null,"Suma wydatków na badania i rozwój [N]",{"$f":"SUMIFS(Wydatki_operacyjne[Okres poprzedni],Wydatki_operacyjne[Typ wydatku],\"Badania i rozwój\")","v":0},{"$f":"SUMIFS(Wydatki_operacyjne[Budżet],Wydatki_operacyjne[Typ wydatku],\"Badania i rozwój\")","v":0},{"$f":"SUMIFS(Wydatki_operacyjne[Okres bieżący],Wydatki_operacyjne[Typ wydatku],\"Badania i rozwój\")","v":0},{"$f":"SUMIFS(Wydatki_operacyjne[Okres bieżący jako procent sprzedaży],Wydatki_operacyjne[Typ wydatku],\"Badania i rozwój\")","v":{"v":0,"d":"0.00%"}},{"$f":"SUMIFS(Wydatki_operacyjne[Zmiana procentowa względem okresu poprzedniego],Wydatki_operacyjne[Typ wydatku],\"Badania i rozwój\")","v":{"v":0,"d":"0.00%"}},{"$f":"SUMIFS(Wydatki_operacyjne[Zmiana procentowa względem budżetu],Wydatki_operacyjne[Typ wydatku],\"Badania i rozwój\")","v":{"v":0,"d":"0.00%"}}]
[null,"Suma wydatków ogólnych i administracyjnych [O]",{"$f":"SUMIFS(Wydatki_operacyjne[Okres poprzedni],Wydatki_operacyjne[Typ wydatku],\"General and Adminstrative\")","v":0},{"$f":"SUMIFS(Wydatki_operacyjne[Budżet],Wydatki_operacyjne[Typ wydatku],\"General and Adminstrative\")","v":0},{"$f":"SUMIFS(Wydatki_operacyjne[Okres bieżący],Wydatki_operacyjne[Typ wydatku],\"General and Adminstrative\")","v":0},{"$f":"SUMIFS(Wydatki_operacyjne[Okres bieżący jako procent sprzedaży],Wydatki_operacyjne[Typ wydatku],\"General and Adminstrative\")","v":{"v":0,"d":"0.00%"}},{"$f":"SUMIFS(Wydatki_operacyjne[Zmiana procentowa względem okresu poprzedniego],Wydatki_operacyjne[Typ wydatku],\"General and Adminstrative\")","v":{"v":0,"d":"0.00%"}},{"$f":"SUMIFS(Wydatki_operacyjne[Zmiana procentowa względem budżetu],Wydatki_operacyjne[Typ wydatku],\"General and Adminstrative\")","v":{"v":0,"d":"0.00%"}}]
[null,"Suma innych wydatków operacyjnych [P]",{"$f":"Wydatki_operacyjne[[#Totals],[Okres poprzedni]]-SUM(C10:C12)","v":0},{"$f":"Wydatki_operacyjne[[#Totals],[Budżet]]-SUM(D10:D12)","v":0},{"$f":"Wydatki_operacyjne[[#Totals],[Okres bieżący]]-SUM(E10:E12)","v":0},{"$f":"Wydatki_operacyjne[[#Totals],[Okres bieżący jako procent sprzedaży]]-SUM(F10:F12)","v":{"v":0,"d":"0.00%"}},{"$f":"Wydatki_operacyjne[[#Totals],[Zmiana procentowa względem okresu poprzedniego]]-SUM(G10:G12)","v":{"v":0,"d":"0.00%"}},{"$f":"Wydatki_operacyjne[[#Totals],[Zmiana procentowa względem budżetu]]-SUM(H10:H12)","v":{"v":0,"d":"0.00%"}}]
[null,"Inne przychody [S]",{"$f":"Przychód[[#Totals],[Okres poprzedni]]","v":0},{"$f":"Przychód[[#Totals],[Budżet]]","v":0},{"$f":"Przychód[[#Totals],[Okres bieżący]]","v":0},{"$f":"Przychód[[#Totals],[Okres bieżący jako procent sprzedaży]]","v":{"v":0,"d":"0.00%"}},{"$f":"Przychód[[#Totals],[Zmiana procentowa względem okresu poprzedniego]]","v":{"v":0,"d":"0.00%"}},{"$f":"Przychód[[#Totals],[Zmiana procentowa względem budżetu]]","v":{"v":0,"d":"0.00%"}}]
[null,"Suma podatków [T]",{"$f":"Podatki[[#Totals],[Okres poprzedni]]","v":0},{"$f":"Podatki[[#Totals],[Budżet]]","v":0},{"$f":"Podatki[[#Totals],[Okres bieżący]]","v":0},{"$f":"Podatki[[#Totals],[Okres bieżący jako procent sprzedaży]]","v":{"v":0,"d":"0.00%"}},{"$f":"Podatki[[#Totals],[Zmiana procentowa względem okresu poprzedniego]]","v":{"v":0,"d":"0.00%"}},{"$f":"Podatki[[#Totals],[Zmiana procentowa względem budżetu]]","v":{"v":0,"d":"0.00%"}}]
[]
[null,"Zysk brutto [L=J-K]",{"$f":"IFERROR(C8-C9,\"-\")","v":0},{"$f":"IFERROR(D8-D9,\"-\")","v":0},{"$f":"IFERROR(Suma_przychodów_ze_sprzedaży-Całkowity_koszt_sprzedaży,\"-\")","v":0},{"$f":"IFERROR(IF(Suma_przychodów_ze_sprzedaży=0,\"0.00%\",Suma_zysku_brutto/Suma_przychodów_ze_sprzedaży),\"-\")","v":"0.00%"},{"$f":"IFERROR(IF(C17=Suma_zysku_brutto,0,IF(Suma_zysku_brutto>C17,ABS((Suma_zysku_brutto/C17)-1),IF(AND(Suma_zysku_brutto<C17,C17<0),-((Suma_zysku_brutto/C17)-1),(Suma_zysku_brutto/C17)-1))),\"-\")","v":{"v":0,"d":"0.00%"}},{"$f":"IFERROR(IF(D17=Suma_zysku_brutto,0,IF(Suma_zysku_brutto>D17,ABS((Suma_zysku_brutto/D17)-1),IF(AND(Suma_zysku_brutto<D17,D17<0),-((Suma_zysku_brutto/D17)-1),(Suma_zysku_brutto/D17)-1))),\"-\")","v":{"v":0,"d":"0.00%"}}]
[null,"Suma wydatków operacyjnych [Q=M+N+O+P]",{"$f":"IFERROR(C10+C11+C12+C13,\"-\")","v":0},{"$f":"IFERROR(D10+D11+D12+D13,\"-\")","v":0},{"$f":"IFERROR(Suma_wydaktów_na_sprzedaż_i_marketing+Suma_wydatków_na_badania_i_rozwój+Suma_wydatków_ogólnych_i_administracyjnych+Suma_innych_wydatków,\"-\")","v":0},{"$f":"IFERROR(IF(Suma_przychodów_ze_sprzedaży=0,\"0.00%\",Suma_wydatków_operacyjnych/Suma_przychodów_ze_sprzedaży),\"-\")","v":"0.00%"},{"$f":"IFERROR(IF(C18=Suma_wydatków_operacyjnych,0,IF(Suma_wydatków_operacyjnych>C18,ABS((Suma_wydatków_operacyjnych/C18)-1),IF(AND(Suma_wydatków_operacyjnych<C18,C18<0),-((Suma_wydatków_operacyjnych/C18)-1),(Suma_wydatków_operacyjnych/C18)-1))),\"-\")","v":{"v":0,"d":"0.00%"}},{"$f":"IFERROR(IF(D18=Suma_wydatków_operacyjnych,0,IF(Suma_wydatków_operacyjnych>D18,ABS((Suma_wydatków_operacyjnych/D18)-1),IF(AND(Suma_wydatków_operacyjnych<D18,D18<0),-((Suma_wydatków_operacyjnych/D18)-1),(Suma_wydatków_operacyjnych/D18)-1))),\"-\")","v":{"v":0,"d":"0.00%"}}]
[null,"Przychód z działalności [R=L-Q]",{"$f":"IFERROR(C17-C18,\"-\")","v":0},{"$f":"IFERROR(D17-D18,\"-\")","v":0},{"$f":"IFERROR(Suma_zysku_brutto-Suma_wydatków_operacyjnych,\"-\")","v":0},{"$f":"IFERROR(IF(Suma_przychodów_ze_sprzedaży=0,\"0.00%\",Suma_przychodów_z_działalności/Suma_przychodów_ze_sprzedaży),\"-\")","v":"0.00%"},{"$f":"IFERROR(IF(C19=Suma_przychodów_z_działalności,0,IF(Suma_przychodów_z_działalności>C19,ABS((Suma_przychodów_z_działalności/C19)-1),IF(AND(Suma_przychodów_z_działalności<C19,C19<0),-((Suma_przychodów_z_działalności/C19)-1),(Suma_przychodów_z_działalności/C19)-1))),\"-\")","v":{"v":0,"d":"0.00%"}},{"$f":"IFERROR(IF(D19=Suma_przychodów_z_działalności,0,IF(Suma_przychodów_z_działalności>D19,ABS((Suma_przychodów_z_działalności/D19)-1),IF(AND(Suma_przychodów_z_działalności<D19,D19<0),-((Suma_przychodów_z_działalności/D19)-1),(Suma_przychodów_z_działalności/D19)-1))),\"-\")","v":{"v":0,"d":"0.00%"}}]
[null,"Zysk netto [U=R+S-T]",{"$f":"IFERROR(C19+C14-C15,\"-\")","v":0},{"$f":"IFERROR(D19+D14-D15,\"-\")","v":0},{"$f":"Suma_przychodów_z_działalności+Suma_innych_przychodów-Suma_podatków","v":0},{"$f":"IFERROR(IF(Suma_przychodów_ze_sprzedaży=0,\"0.00%\",Zysk_netto/Suma_przychodów_ze_sprzedaży),\"-\")","v":"0.00%"},{"$f":"IFERROR(IF(C20=Zysk_netto,0,IF(Zysk_netto>C20,ABS((Zysk_netto/C20)-1),IF(AND(Zysk_netto<C20,C20<0),-((Zysk_netto/C20)-1),(Zysk_netto/C20)-1))),\"-\")","v":{"v":0,"d":"0.00%"}},{"$f":"IFERROR(IF(D20=Zysk_netto,0,IF(Zysk_netto>D20,ABS((Zysk_netto/D20)-1),IF(AND(Zysk_netto<D20,D20<0),-((Zysk_netto/D20)-1),(Zysk_netto/D20)-1))),\"-\")","v":{"v":0,"d":"0.00%"}}]

{"sheet":"Sprzedaż","index":1,"n_rows":13,"n_cols":9,"rows_kept":13,"merged":[[0,7,2,8]]}
[null,{"$f":"Tytuł_skoroszytu","v":"Zestawienie zysków i strat"}]
[null,{"$f":"Nazwa_firmy","v":"Nazwa firmy"},"Wyrażona w tysiącach"]
[null,"Przychód ze sprzedaży",{"$f":"IFERROR(Przychód_ze_sprzedaży,\"-\")","v":0}]
[null,"Typ przychodu ze sprzedaży","Opis","Okres poprzedni","Budżet","Okres bieżący","Okres bieżący jako procent sprzedaży","Zmiana procentowa względem okresu poprzedniego","Zmiana procentowa względem budżetu"]
[null,"Przychód ze sprzedaży","Produkt/usługa 1",{"$nulls":3},{"$f":"IFERROR(IF(Przychód_ze_sprzedaży_1[[#Totals],[Okres bieżący]]=0,\"-\",Przychód_ze_sprzedaży_1[[#This Row],[Okres bieżący]]/Przychód_ze_sprzedaży),\"-\")","v":"-"},{"$f":"IFERROR(IF(Przychód_ze_sprzedaży_1[[#This Row],[Okres poprzedni]]=Przychód_ze_sprzedaży_1[[#This Row],[Okres bieżący]],0,IF(Przychód_ze_sprzedaży_1[[#This Row],[Okres bieżący]]>Przychód_ze_sprzedaży_1[[#This Row],[Okres poprzedni]],ABS((Przychód_ze_sprzedaży_1[[#This Row],[Okres bieżący]]/Przychód_ze_sprzedaży_1[[#This Row],[Okres poprzedni]])-1),IF(AND(Przychód_ze_sprzedaży_1[[#This Row],[Okres bieżący]]<Przychód_ze_sprzedaży_1[[#This Row],[Okres poprzedni]],Przychód_ze_sprzedaży_1[[#This Row],[Okres poprzedni]]<0),-((Przychód_ze_sprzedaży_1[[#This Row],[Okres bieżący]]/Przychód_ze_sprzedaży_1[[#This Row],[Okres poprzedni]])-1),(Przychód_ze_sprzedaży_1[[#This Row],[Okres bieżący]]/Przychód_ze_sprzedaży_1[[#This Row],[Okres poprzedni]])-1))),\"-\")","v":{"v":0,"d":"0.00%"}},{"$f":"IFERROR(IF(Przychód_ze_sprzedaży_1[[#This Row],[Budżet]]=Przychód_ze_sprzedaży_1[[#This Row],[Okres bieżący]],0,IF(Przychód_ze_sprzedaży_1[[#This Row],[Okres bieżący]]>Przychód_ze_sprzedaży_1[[#This Row],[Budżet]],ABS((Przychód_ze_sprzedaży_1[[#This Row],[Okres bieżący]]/Przychód_ze_sprzedaży_1[[#This Row],[Budżet]])-1),IF(AND(Przychód_ze_sprzedaży_1[[#This Row],[Okres bieżący]]<Przychód_ze_sprzedaży_1[[#This Row],[Budżet]],Przychód_ze_sprzedaży_1[[#This Row],[Budżet]]<0),-((Przychód_ze_sprzedaży_1[[#This Row],[Okres bieżący]]/Przychód_ze_sprzedaży_1[[#This Row],[Budżet]])-1),(Przychód_ze_sprzedaży_1[[#This Row],[Okres bieżący]]/Przychód_ze_sprzedaży_1[[#This Row],[Budżet]])-1))),\"-\")","v":{"v":0,"d":"0.00%"}}]
[null,"Przychód ze sprzedaży","Produkt/usługa 2",{"$nulls":3},{"$f":"IFERROR(IF(Przychód_ze_sprzedaży_1[[#Totals],[Okres bieżący]]=0,\"-\",Przychód_ze_sprzedaży_1[[#This Row],[Okres bieżący]]/Przychód_ze_sprzedaży),\"-\")","v":"-"},{"$f":"IFERROR(IF(Przychód_ze_sprzedaży_1[[#This Row],[Okres poprzedni]]=Przychód_ze_sprzedaży_1[[#This Row],[Okres bieżący]],0,IF(Przychód_ze_sprzedaży_1[[#This Row],[Okres bieżący]]>Przychód_ze_sprzedaży_1[[#This Row],[Okres poprzedni]],ABS((Przychód_ze_sprzedaży_1[[#This Row],[Okres bieżący]]/Przychód_ze_sprzedaży_1[[#This Row],[Okres poprzedni]])-1),IF(AND(Przychód_ze_sprzedaży_1[[#This Row],[Okres bieżący]]<Przychód_ze_sprzedaży_1[[#This Row],[Okres poprzedni]],Przychód_ze_sprzedaży_1[[#This Row],[Okres poprzedni]]<0),-((Przychód_ze_sprzedaży_1[[#This Row],[Okres bieżący]]/Przychód_ze_sprzedaży_1[[#This Row],[Okres poprzedni]])-1),(Przychód_ze_sprzedaży_1[[#This Row],[Okres bieżący]]/Przychód_ze_sprzedaży_1[[#This Row],[Okres poprzedni]])-1))),\"-\")","v":{"v":0,"d":"0.00%"}},{"$f":"IFERROR(IF(Przychód_ze_sprzedaży_1[[#This Row],[Budżet]]=Przychód_ze_sprzedaży_1[[#This Row],[Okres bieżący]],0,IF(Przychód_ze_sprzedaży_1[[#This Row],[Okres bieżący]]>Przychód_ze_sprzedaży_1[[#This Row],[Budżet]],ABS((Przychód_ze_sprzedaży_1[[#This Row],[Okres bieżący]]/Przychód_ze_sprzedaży_1[[#This Row],[Budżet]])-1),IF(AND(Przychód_ze_sprzedaży_1[[#This Row],[Okres bieżący]]<Przychód_ze_sprzedaży_1[[#This Row],[Budżet]],Przychód_ze_sprzedaży_1[[#This Row],[Budżet]]<0),-((Przychód_ze_sprzedaży_1[[#This Row],[Okres bieżący]]/Przychód_ze_sprzedaży_1[[#This Row],[Budżet]])-1),(Przychód_ze_sprzedaży_1[[#This Row],[Okres bieżący]]/Przychód_ze_sprzedaży_1[[#This Row],[Budżet]])-1))),\"-\")","v":{"v":0,"d":"0.00%"}}]
[null,"Przychód ze sprzedaży","Produkt/usługa 3",{"$nulls":3},{"$f":"IFERROR(IF(Przychód_ze_sprzedaży_1[[#Totals],[Okres bieżący]]=0,\"-\",Przychód_ze_sprzedaży_1[[#This Row],[Okres bieżący]]/Przychód_ze_sprzedaży),\"-\")","v":"-"},{"$f":"IFERROR(IF(Przychód_ze_sprzedaży_1[[#This Row],[Okres poprzedni]]=Przychód_ze_sprzedaży_1[[#This Row],[Okres bieżący]],0,IF(Przychód_ze_sprzedaży_1[[#This Row],[Okres bieżący]]>Przychód_ze_sprzedaży_1[[#This Row],[Okres poprzedni]],ABS((Przychód_ze_sprzedaży_1[[#This Row],[Okres bieżący]]/Przychód_ze_sprzedaży_1[[#This Row],[Okres poprzedni]])-1),IF(AND(Przychód_ze_sprzedaży_1[[#This Row],[Okres bieżący]]<Przychód_ze_sprzedaży_1[[#This Row],[Okres poprzedni]],Przychód_ze_sprzedaży_1[[#This Row],[Okres poprzedni]]<0),-((Przychód_ze_sprzedaży_1[[#This Row],[Okres bieżący]]/Przychód_ze_sprzedaży_1[[#This Row],[Okres poprzedni]])-1),(Przychód_ze_sprzedaży_1[[#This Row],[Okres bieżący]]/Przychód_ze_sprzedaży_1[[#This Row],[Okres poprzedni]])-1))),\"-\")","v":{"v":0,"d":"0.00%"}},{"$f":"IFERROR(IF(Przychód_ze_sprzedaży_1[[#This Row],[Budżet]]=Przychód_ze_sprzedaży_1[[#This Row],[Okres bieżący]],0,IF(Przychód_ze_sprzedaży_1[[#This Row],[Okres bieżący]]>Przychód_ze_sprzedaży_1[[#This Row],[Budżet]],ABS((Przychód_ze_sprzedaży_1[[#This Row],[Okres bieżący]]/Przychód_ze_sprzedaży_1[[#This Row],[Budżet]])-1),IF(AND(Przychód_ze_sprzedaży_1[[#This Row],[Okres bieżący]]<Przychód_ze_sprzedaży_1[[#This Row],[Budżet]],Przychód_ze_sprzedaży_1[[#This Row],[Budżet]]<0),-((Przychód_ze_sprzedaży_1[[#This Row],[Okres bieżący]]/Przychód_ze_sprzedaży_1[[#This Row],[Budżet]])-1),(Przychód_ze_sprzedaży_1[[#This Row],[Okres bieżący]]/Przychód_ze_sprzedaży_1[[#This Row],[Budżet]])-1))),\"-\")","v":{"v":0,"d":"0.00%"}}]
[null,"Przychód ze sprzedaży","Produkt/usługa 4",{"$nulls":3},{"$f":"IFERROR(IF(Przychód_ze_sprzedaży_1[[#Totals],[Okres bieżący]]=0,\"-\",Przychód_ze_sprzedaży_1[[#This Row],[Okres bieżący]]/Przychód_ze_sprzedaży),\"-\")","v":"-"},{"$f":"IFERROR(IF(Przychód_ze_sprzedaży_1[[#This Row],[Okres poprzedni]]=Przychód_ze_sprzedaży_1[[#This Row],[Okres bieżący]],0,IF(Przychód_ze_sprzedaży_1[[#This Row],[Okres bieżący]]>Przychód_ze_sprzedaży_1[[#This Row],[Okres poprzedni]],ABS((Przychód_ze_sprzedaży_1[[#This Row],[Okres bieżący]]/Przychód_ze_sprzedaży_1[[#This Row],[Okres poprzedni]])-1),IF(AND(Przychód_ze_sprzedaży_1[[#This Row],[Okres bieżący]]<Przychód_ze_sprzedaży_1[[#This Row],[Okres poprzedni]],Przychód_ze_sprzedaży_1[[#This Row],[Okres poprzedni]]<0),-((Przychód_ze_sprzedaży_1[[#This Row],[Okres bieżący]]/Przychód_ze_sprzedaży_1[[#This Row],[Okres poprzedni]])-1),(Przychód_ze_sprzedaży_1[[#This Row],[Okres bieżący]]/Przychód_ze_sprzedaży_1[[#This Row],[Okres poprzedni]])-1))),\"-\")","v":{"v":0,"d":"0.00%"}},{"$f":"IFERROR(IF(Przychód_ze_sprzedaży_1[[#This Row],[Budżet]]=Przychód_ze_sprzedaży_1[[#This Row],[Okres bieżący]],0,IF(Przychód_ze_sprzedaży_1[[#This Row],[Okres bieżący]]>Przychód_ze_sprzedaży_1[[#This Row],[Budżet]],ABS((Przychód_ze_sprzedaży_1[[#This Row],[Okres bieżący]]/Przychód_ze_sprzedaży_1[[#This Row],[Budżet]])-1),IF(AND(Przychód_ze_sprzedaży_1[[#This Row],[Okres bieżący]]<Przychód_ze_sprzedaży_1[[#This Row],[Budżet]],Przychód_ze_sprzedaży_1[[#This Row],[Budżet]]<0),-((Przychód_ze_sprzedaży_1[[#This Row],[Okres bieżący]]/Przychód_ze_sprzedaży_1[[#This Row],[Budżet]])-1),(Przychód_ze_sprzedaży_1[[#This Row],[Okres bieżący]]/Przychód_ze_sprzedaży_1[[#This Row],[Budżet]])-1))),\"-\")","v":{"v":0,"d":"0.00%"}}]
[null,"Koszt sprzedaży","Produkt/usługa 1",{"$nulls":3},{"$f":"IFERROR(IF(Przychód_ze_sprzedaży_1[[#Totals],[Okres bieżący]]=0,\"-\",Przychód_ze_sprzedaży_1[[#This Row],[Okres bieżący]]/Przychód_ze_sprzedaży),\"-\")","v":"-"},{"$f":"IFERROR(IF(Przychód_ze_sprzedaży_1[[#This Row],[Okres poprzedni]]=Przychód_ze_sprzedaży_1[[#This Row],[Okres bieżący]],0,IF(Przychód_ze_sprzedaży_1[[#This Row],[Okres bieżący]]>Przychód_ze_sprzedaży_1[[#This Row],[Okres poprzedni]],ABS((Przychód_ze_sprzedaży_1[[#This Row],[Okres bieżący]]/Przychód_ze_sprzedaży_1[[#This Row],[Okres poprzedni]])-1),IF(AND(Przychód_ze_sprzedaży_1[[#This Row],[Okres bieżący]]<Przychód_ze_sprzedaży_1[[#This Row],[Okres poprzedni]],Przychód_ze_sprzedaży_1[[#This Row],[Okres poprzedni]]<0),-((Przychód_ze_sprzedaży_1[[#This Row],[Okres bieżący]]/Przychód_ze_sprzedaży_1[[#This Row],[Okres poprzedni]])-1),(Przychód_ze_sprzedaży_1[[#This Row],[Okres bieżący]]/Przychód_ze_sprzedaży_1[[#This Row],[Okres poprzedni]])-1))),\"-\")","v":{"v":0,"d":"0.00%"}},{"$f":"IFERROR(IF(Przychód_ze_sprzedaży_1[[#This Row],[Budżet]]=Przychód_ze_sprzedaży_1[[#This Row],[Okres bieżący]],0,IF(Przychód_ze_sprzedaży_1[[#This Row],[Okres bieżący]]>Przychód_ze_sprzedaży_1[[#This Row],[Budżet]],ABS((Przychód_ze_sprzedaży_1[[#This Row],[Okres bieżący]]/Przychód_ze_sprzedaży_1[[#This Row],[Budżet]])-1),IF(AND(Przychód_ze_sprzedaży_1[[#This Row],[Okres bieżący]]<Przychód_ze_sprzedaży_1[[#This Row],[Budżet]],Przychód_ze_sprzedaży_1[[#This Row],[Budżet]]<0),-((Przychód_ze_sprzedaży_1[[#This Row],[Okres bieżący]]/Przychód_ze_sprzedaży_1[[#This Row],[Budżet]])-1),(Przychód_ze_sprzedaży_1[[#This Row],[Okres bieżący]]/Przychód_ze_sprzedaży_1[[#This Row],[Budżet]])-1))),\"-\")","v":{"v":0,"d":"0.00%"}}]
[null,"Koszt sprzedaży","Produkt/usługa 2",{"$nulls":3},{"$f":"IFERROR(IF(Przychód_ze_sprzedaży_1[[#Totals],[Okres bieżący]]=0,\"-\",Przychód_ze_sprzedaży_1[[#This Row],[Okres bieżący]]/Przychód_ze_sprzedaży),\"-\")","v":"-"},{"$f":"IFERROR(IF(Przychód_ze_sprzedaży_1[[#This Row],[Okres poprzedni]]=Przychód_ze_sprzedaży_1[[#This Row],[Okres bieżący]],0,IF(Przychód_ze_sprzedaży_1[[#This Row],[Okres bieżący]]>Przychód_ze_sprzedaży_1[[#This Row],[Okres poprzedni]],ABS((Przychód_ze_sprzedaży_1[[#This Row],[Okres bieżący]]/Przychód_ze_sprzedaży_1[[#This Row],[Okres poprzedni]])-1),IF(AND(Przychód_ze_sprzedaży_1[[#This Row],[Okres bieżący]]<Przychód_ze_sprzedaży_1[[#This Row],[Okres poprzedni]],Przychód_ze_sprzedaży_1[[#This Row],[Okres poprzedni]]<0),-((Przychód_ze_sprzedaży_1[[#This Row],[Okres bieżący]]/Przychód_ze_sprzedaży_1[[#This Row],[Okres poprzedni]])-1),(Przychód_ze_sprzedaży_1[[#This Row],[Okres bieżący]]/Przychód_ze_sprzedaży_1[[#This Row],[Okres poprzedni]])-1))),\"-\")","v":{"v":0,"d":"0.00%"}},{"$f":"IFERROR(IF(Przychód_ze_sprzedaży_1[[#This Row],[Budżet]]=Przychód_ze_sprzedaży_1[[#This Row],[Okres bieżący]],0,IF(Przychód_ze_sprzedaży_1[[#This Row],[Okres bieżący]]>Przychód_ze_sprzedaży_1[[#This Row],[Budżet]],ABS((Przychód_ze_sprzedaży_1[[#This Row],[Okres bieżący]]/Przychód_ze_sprzedaży_1[[#This Row],[Budżet]])-1),IF(AND(Przychód_ze_sprzedaży_1[[#This Row],[Okres bieżący]]<Przychód_ze_sprzedaży_1[[#This Row],[Budżet]],Przychód_ze_sprzedaży_1[[#This Row],[Budżet]]<0),-((Przychód_ze_sprzedaży_1[[#This Row],[Okres bieżący]]/Przychód_ze_sprzedaży_1[[#This Row],[Budżet]])-1),(Przychód_ze_sprzedaży_1[[#This Row],[Okres bieżący]]/Przychód_ze_sprzedaży_1[[#This Row],[Budżet]])-1))),\"-\")","v":{"v":0,"d":"0.00%"}}]
[null,"Koszt sprzedaży","Produkt/usługa 3",{"$nulls":3},{"$f":"IFERROR(IF(Przychód_ze_sprzedaży_1[[#Totals],[Okres bieżący]]=0,\"-\",Przychód_ze_sprzedaży_1[[#This Row],[Okres bieżący]]/Przychód_ze_sprzedaży),\"-\")","v":"-"},{"$f":"IFERROR(IF(Przychód_ze_sprzedaży_1[[#This Row],[Okres poprzedni]]=Przychód_ze_sprzedaży_1[[#This Row],[Okres bieżący]],0,IF(Przychód_ze_sprzedaży_1[[#This Row],[Okres bieżący]]>Przychód_ze_sprzedaży_1[[#This Row],[Okres poprzedni]],ABS((Przychód_ze_sprzedaży_1[[#This Row],[Okres bieżący]]/Przychód_ze_sprzedaży_1[[#This Row],[Okres poprzedni]])-1),IF(AND(Przychód_ze_sprzedaży_1[[#This Row],[Okres bieżący]]<Przychód_ze_sprzedaży_1[[#This Row],[Okres poprzedni]],Przychód_ze_sprzedaży_1[[#This Row],[Okres poprzedni]]<0),-((Przychód_ze_sprzedaży_1[[#This Row],[Okres bieżący]]/Przychód_ze_sprzedaży_1[[#This Row],[Okres poprzedni]])-1),(Przychód_ze_sprzedaży_1[[#This Row],[Okres bieżący]]/Przychód_ze_sprzedaży_1[[#This Row],[Okres poprzedni]])-1))),\"-\")","v":{"v":0,"d":"0.00%"}},{"$f":"IFERROR(IF(Przychód_ze_sprzedaży_1[[#This Row],[Budżet]]=Przychód_ze_sprzedaży_1[[#This Row],[Okres bieżący]],0,IF(Przychód_ze_sprzedaży_1[[#This Row],[Okres bieżący]]>Przychód_ze_sprzedaży_1[[#This Row],[Budżet]],ABS((Przychód_ze_sprzedaży_1[[#This Row],[Okres bieżący]]/Przychód_ze_sprzedaży_1[[#This Row],[Budżet]])-1),IF(AND(Przychód_ze_sprzedaży_1[[#This Row],[Okres bieżący]]<Przychód_ze_sprzedaży_1[[#This Row],[Budżet]],Przychód_ze_sprzedaży_1[[#This Row],[Budżet]]<0),-((Przychód_ze_sprzedaży_1[[#This Row],[Okres bieżący]]/Przychód_ze_sprzedaży_1[[#This Row],[Budżet]])-1),(Przychód_ze_sprzedaży_1[[#This Row],[Okres bieżący]]/Przychód_ze_sprzedaży_1[[#This Row],[Budżet]])-1))),\"-\")","v":{"v":0,"d":"0.00%"}}]
[null,"Koszt sprzedaży","Produkt/usługa 4",{"$nulls":3},{"$f":"IFERROR(IF(Przychód_ze_sprzedaży_1[[#Totals],[Okres bieżący]]=0,\"-\",Przychód_ze_sprzedaży_1[[#This Row],[Okres bieżący]]/Przychód_ze_sprzedaży),\"-\")","v":"-"},{"$f":"IFERROR(IF(Przychód_ze_sprzedaży_1[[#This Row],[Okres poprzedni]]=Przychód_ze_sprzedaży_1[[#This Row],[Okres bieżący]],0,IF(Przychód_ze_sprzedaży_1[[#This Row],[Okres bieżący]]>Przychód_ze_sprzedaży_1[[#This Row],[Okres poprzedni]],ABS((Przychód_ze_sprzedaży_1[[#This Row],[Okres bieżący]]/Przychód_ze_sprzedaży_1[[#This Row],[Okres poprzedni]])-1),IF(AND(Przychód_ze_sprzedaży_1[[#This Row],[Okres bieżący]]<Przychód_ze_sprzedaży_1[[#This Row],[Okres poprzedni]],Przychód_ze_sprzedaży_1[[#This Row],[Okres poprzedni]]<0),-((Przychód_ze_sprzedaży_1[[#This Row],[Okres bieżący]]/Przychód_ze_sprzedaży_1[[#This Row],[Okres poprzedni]])-1),(Przychód_ze_sprzedaży_1[[#This Row],[Okres bieżący]]/Przychód_ze_sprzedaży_1[[#This Row],[Okres poprzedni]])-1))),\"-\")","v":{"v":0,"d":"0.00%"}},{"$f":"IFERROR(IF(Przychód_ze_sprzedaży_1[[#This Row],[Budżet]]=Przychód_ze_sprzedaży_1[[#This Row],[Okres bieżący]],0,IF(Przychód_ze_sprzedaży_1[[#This Row],[Okres bieżący]]>Przychód_ze_sprzedaży_1[[#This Row],[Budżet]],ABS((Przychód_ze_sprzedaży_1[[#This Row],[Okres bieżący]]/Przychód_ze_sprzedaży_1[[#This Row],[Budżet]])-1),IF(AND(Przychód_ze_sprzedaży_1[[#This Row],[Okres bieżący]]<Przychód_ze_sprzedaży_1[[#This Row],[Budżet]],Przychód_ze_sprzedaży_1[[#This Row],[Budżet]]<0),-((Przychód_ze_sprzedaży_1[[#This Row],[Okres bieżący]]/Przychód_ze_sprzedaży_1[[#This Row],[Budżet]])-1),(Przychód_ze_sprzedaży_1[[#This Row],[Okres bieżący]]/Przychód_ze_sprzedaży_1[[#This Row],[Budżet]])-1))),\"-\")","v":{"v":0,"d":"0.00%"}}]
[null,"Suma przychodów ze sprzedaży",null,{"$f":"SUBTOTAL(109,Przychód_ze_sprzedaży_1[Okres poprzedni])","v":0},{"$f":"SUBTOTAL(109,Przychód_ze_sprzedaży_1[Budżet])","v":0},{"$f":"SUBTOTAL(109,Przychód_ze_sprzedaży_1[Okres bieżący])","v":0},{"$f":"SUBTOTAL(109,Przychód_ze_sprzedaży_1[Okres bieżący jako procent sprzedaży])","v":{"v":0,"d":"0.00%"}},{"$f":"SUBTOTAL(109,Przychód_ze_sprzedaży_1[Zmiana procentowa względem okresu poprzedniego])","v":{"v":0,"d":"0.00%"}},{"$f":"SUBTOTAL(109,Przychód_ze_sprzedaży_1[Zmiana procentowa względem budżetu])","v":{"v":0,"d":"0.00%"}}]

{"sheet":"Przychód","index":2,"n_rows":7,"n_cols":9,"rows_kept":7,"merged":[[0,7,2,8]]}
[null,{"$f":"Tytuł_skoroszytu","v":"Zestawienie zysków i strat"}]
[null,{"$f":"Nazwa_firmy","v":"Nazwa firmy"},"Wyrażona w tysiącach"]
[null,"Przychód",{"$f":"IFERROR(Przychód[[#Totals],[Okres bieżący]],\"-\")","v":0}]
[null,"Typ przychodu","Opis","Okres poprzedni","Budżet","Okres bieżący","Okres bieżący jako procent sprzedaży","Zmiana procentowa względem okresu poprzedniego","Zmiana procentowa względem budżetu"]
[null,"Przychód","Inne przychody",{"$nulls":3},{"$f":"IFERROR(IF(Przychód_ze_sprzedaży=0,\"-\",Przychód[[#This Row],[Okres bieżący]]/Przychód_ze_sprzedaży),\"-\")","v":"-"},{"$f":"IFERROR(IF(Przychód[[#This Row],[Okres poprzedni]]=Przychód[[#This Row],[Okres bieżący]],0,IF(Przychód[[#This Row],[Okres bieżący]]>Przychód[[#This Row],[Okres poprzedni]],ABS((Przychód[[#This Row],[Okres bieżący]]/Przychód[[#This Row],[Okres poprzedni]])-1),IF(AND(Przychód[[#This Row],[Okres bieżący]]<Przychód[[#This Row],[Okres poprzedni]],Przychód[[#This Row],[Okres poprzedni]]<0),-((Przychód[[#This Row],[Okres bieżący]]/Przychód[[#This Row],[Okres poprzedni]])-1),(Przychód[[#This Row],[Okres bieżący]]/Przychód[[#This Row],[Okres poprzedni]])-1))),\"-\")","v":{"v":0,"d":"0.00%"}},{"$f":"IFERROR(IF(Przychód[[#This Row],[Budżet]]=Przychód[[#This Row],[Okres bieżący]],0,IF(Przychód[[#This Row],[Okres bieżący]]>Przychód[[#This Row],[Budżet]],ABS((Przychód[[#This Row],[Okres bieżący]]/Przychód[[#This Row],[Budżet]])-1),IF(AND(Przychód[[#This Row],[Okres bieżący]]<Przychód[[#This Row],[Budżet]],Przychód[[#This Row],[Budżet]]<0),-((Przychód[[#This Row],[Okres bieżący]]/Przychód[[#This Row],[Budżet]])-1),(Przychód[[#This Row],[Okres bieżący]]/Przychód[[#This Row],[Budżet]])-1))),\"-\")","v":{"v":0,"d":"0.00%"}}]
[{"$nulls":6},{"$f":"IFERROR(IF(Przychód_ze_sprzedaży=0,\"-\",Przychód[[#This Row],[Okres bieżący]]/Przychód_ze_sprzedaży),\"-\")","v":"-"},{"$f":"IFERROR(IF(Przychód[[#This Row],[Okres poprzedni]]=Przychód[[#This Row],[Okres bieżący]],0,IF(Przychód[[#This Row],[Okres bieżący]]>Przychód[[#This Row],[Okres poprzedni]],ABS((Przychód[[#This Row],[Okres bieżący]]/Przychód[[#This Row],[Okres poprzedni]])-1),IF(AND(Przychód[[#This Row],[Okres bieżący]]<Przychód[[#This Row],[Okres poprzedni]],Przychód[[#This Row],[Okres poprzedni]]<0),-((Przychód[[#This Row],[Okres bieżący]]/Przychód[[#This Row],[Okres poprzedni]])-1),(Przychód[[#This Row],[Okres bieżący]]/Przychód[[#This Row],[Okres poprzedni]])-1))),\"-\")","v":{"v":0,"d":"0.00%"}},{"$f":"IFERROR(IF(Przychód[[#This Row],[Budżet]]=Przychód[[#This Row],[Okres bieżący]],0,IF(Przychód[[#This Row],[Okres bieżący]]>Przychód[[#This Row],[Budżet]],ABS((Przychód[[#This Row],[Okres bieżący]]/Przychód[[#This Row],[Budżet]])-1),IF(AND(Przychód[[#This Row],[Okres bieżący]]<Przychód[[#This Row],[Budżet]],Przychód[[#This Row],[Budżet]]<0),-((Przychód[[#This Row],[Okres bieżący]]/Przychód[[#This Row],[Budżet]])-1),(Przychód[[#This Row],[Okres bieżący]]/Przychód[[#This Row],[Budżet]])-1))),\"-\")","v":{"v":0,"d":"0.00%"}}]
[null,"Suma przychodów ze sprzedaży",null,{"$f":"SUBTOTAL(109,Przychód[Okres poprzedni])","v":0},{"$f":"SUBTOTAL(109,Przychód[Budżet])","v":0},{"$f":"SUBTOTAL(109,Przychód[Okres bieżący])","v":0},{"$f":"SUBTOTAL(109,Przychód[Okres bieżący jako procent sprzedaży])","v":{"v":0,"d":"0.00%"}},{"$f":"SUBTOTAL(109,Przychód[Zmiana procentowa względem okresu poprzedniego])","v":{"v":0,"d":"0.00%"}},{"$f":"SUBTOTAL(109,Przychód[Zmiana procentowa względem budżetu])","v":{"v":0,"d":"0.00%"}}]

{"sheet":"Wydatki","index":3,"n_rows":25,"n_cols":9,"rows_kept":25,"merged":[[0,7,2,8]]}
[null,{"$f":"Tytuł_skoroszytu","v":"Zestawienie zysków i strat"}]
[null,{"$f":"Nazwa_firmy","v":"Nazwa firmy"},"Wyrażona w tysiącach"]
[null,"Wydatki operacyjne",{"$f":"IFERROR(Wydatki_operacyjne[[#Totals],[Okres bieżący]],\"-\")","v":0}]
[null,"Typ wydatku","Opis","Okres poprzedni","Budżet","Okres bieżący","Okres bieżący jako procent sprzedaży","Zmiana procentowa względem okresu poprzedniego","Zmiana procentowa względem budżetu"]
[null,"Sprzedaż i marketing","Reklama",{"$nulls":3},{"$f":"IFERROR(IF(Przychód_ze_sprzedaży=0,\"-\",Wydatki_operacyjne[[#This Row],[Okres bieżący]]/Przychód_ze_sprzedaży),\"-\")","v":"-"},{"$f":"IFERROR(IF(Wydatki_operacyjne[[#This Row],[Okres poprzedni]]=Wydatki_operacyjne[[#This Row],[Okres bieżący]],0,IF(Wydatki_operacyjne[[#This Row],[Okres bieżący]]>Wydatki_operacyjne[[#This Row],[Okres poprzedni]],ABS((Wydatki_operacyjne[[#This Row],[Okres bieżący]]/Wydatki_operacyjne[[#This Row],[Okres poprzedni]])-1),IF(AND(Wydatki_operacyjne[[#This Row],[Okres bieżący]]<Wydatki_operacyjne[[#This Row],[Okres poprzedni]],Wydatki_operacyjne[[#This Row],[Okres poprzedni]]<0),-((Wydatki_operacyjne[[#This Row],[Okres bieżący]]/Wydatki_operacyjne[[#This Row],[Okres poprzedni]])-1),(Wydatki_operacyjne[[#This Row],[Okres bieżący]]/Wydatki_operacyjne[[#This Row],[Okres poprzedni]])-1))),\"-\")","v":{"v":0,"d":"0.00%"}},{"$f":"IFERROR(IF(Wydatki_operacyjne[[#This Row],[Budżet]]=Wydatki_operacyjne[[#This Row],[Okres bieżący]],0,IF(Wydatki_operacyjne[[#This Row],[Okres bieżący]]>Wydatki_operacyjne[[#This Row],[Budżet]],ABS((Wydatki_operacyjne[[#This Row],[Okres bieżący]]/Wydatki_operacyjne[[#This Row],[Budżet]])-1),IF(AND(Wydatki_operacyjne[[#This Row],[Okres bieżący]]<Wydatki_operacyjne[[#This Row],[Budżet]],Wydatki_operacyjne[[#This Row],[Budżet]]<0),-((Wydatki_operacyjne[[#This Row],[Okres bieżący]]/Wydatki_operacyjne[[#This Row],[Budżet]])-1),(Wydatki_operacyjne[[#This Row],[Okres bieżący]]/Wydatki_operacyjne[[#This Row],[Budżet]])-1))),\"-\")","v":{"v":0,"d":"0.00%"}}]
[null,"Sprzedaż i marketing","Marketing bezpośredni",{"$nulls":3},{"$f":"IFERROR(IF(Przychód_ze_sprzedaży=0,\"-\",Wydatki_operacyjne[[#This Row],[Okres bieżący]]/Przychód_ze_sprzedaży),\"-\")","v":"-"},{"$f":"IFERROR(IF(Wydatki_operacyjne[[#This Row],[Okres poprzedni]]=Wydatki_operacyjne[[#This Row],[Okres bieżący]],0,IF(Wydatki_operacyjne[[#This Row],[Okres bieżący]]>Wydatki_operacyjne[[#This Row],[Okres poprzedni]],ABS((Wydatki_operacyjne[[#This Row],[Okres bieżący]]/Wydatki_operacyjne[[#This Row],[Okres poprzedni]])-1),IF(AND(Wydatki_operacyjne[[#This Row],[Okres bieżący]]<Wydatki_operacyjne[[#This Row],[Okres poprzedni]],Wydatki_operacyjne[[#This Row],[Okres poprzedni]]<0),-((Wydatki_operacyjne[[#This Row],[Okres bieżący]]/Wydatki_operacyjne[[#This Row],[Okres poprzedni]])-1),(Wydatki_operacyjne[[#This Row],[Okres bieżący]]/Wydatki_operacyjne[[#This Row],[Okres poprzedni]])-1))),\"-\")","v":{"v":0,"d":"0.00%"}},{"$f":"IFERROR(IF(Wydatki_operacyjne[[#This Row],[Budżet]]=Wydatki_operacyjne[[#This Row],[Okres bieżący]],0,IF(Wydatki_operacyjne[[#This Row],[Okres bieżący]]>Wydatki_operacyjne[[#This Row],[Budżet]],ABS((Wydatki_operacyjne[[#This Row],[Okres bieżący]]/Wydatki_operacyjne[[#This Row],[Budżet]])-1),IF(AND(Wydatki_operacyjne[[#This Row],[Okres bieżący]]<Wydatki_operacyjne[[#This Row],[Budżet]],Wydatki_operacyjne[[#This Row],[Budżet]]<0),-((Wydatki_operacyjne[[#This Row],[Okres bieżący]]/Wydatki_operacyjne[[#This Row],[Budżet]])-1),(Wydatki_operacyjne[[#This Row],[Okres bieżący]]/Wydatki_operacyjne[[#This Row],[Budżet]])-1))),\"-\")","v":{"v":0,"d":"0.00%"}}]
[null,"Sprzedaż i marketing","Inne wydatki (określ)",{"$nulls":3},{"$f":"IFERROR(IF(Przychód_ze_sprzedaży=0,\"-\",Wydatki_operacyjne[[#This Row],[Okres bieżący]]/Przychód_ze_sprzedaży),\"-\")","v":"-"},{"$f":"IFERROR(IF(Wydatki_operacyjne[[#This Row],[Okres poprzedni]]=Wydatki_operacyjne[[#This Row],[Okres bieżący]],0,IF(Wydatki_operacyjne[[#This Row],[Okres bieżący]]>Wydatki_operacyjne[[#This Row],[Okres poprzedni]],ABS((Wydatki_operacyjne[[#This Row],[Okres bieżący]]/Wydatki_operacyjne[[#This Row],[Okres poprzedni]])-1),IF(AND(Wydatki_operacyjne[[#This Row],[Okres bieżący]]<Wydatki_operacyjne[[#This Row],[Okres poprzedni]],Wydatki_operacyjne[[#This Row],[Okres poprzedni]]<0),-((Wydatki_operacyjne[[#This Row],[Okres bieżący]]/Wydatki_operacyjne[[#This Row],[Okres poprzedni]])-1),(Wydatki_operacyjne[[#This Row],[Okres bieżący]]/Wydatki_operacyjne[[#This Row],[Okres poprzedni]])-1))),\"-\")","v":{"v":0,"d":"0.00%"}},{"$f":"IFERROR(IF(Wydatki_operacyjne[[#This Row],[Budżet]]=Wydatki_operacyjne[[#This Row],[Okres bieżący]],0,IF(Wydatki_operacyjne[[#This Row],[Okres bieżący]]>Wydatki_operacyjne[[#This Row],[Budżet]],ABS((Wydatki_operacyjne[[#This Row],[Okres bieżący]]/Wydatki_operacyjne[[#This Row],[Budżet]])-1),IF(AND(Wydatki_operacyjne[[#This Row],[Okres bieżący]]<Wydatki_operacyjne[[#This Row],[Budżet]],Wydatki_operacyjne[[#This Row],[Budżet]]<0),-((Wydatki_operacyjne[[#This Row],[Okres bieżący]]/Wydatki_operacyjne[[#This Row],[Budżet]])-1),(Wydatki_operacyjne[[#This Row],[Okres bieżący]]/Wydatki_operacyjne[[#This Row],[Budżet]])-1))),\"-\")","v":{"v":0,"d":"0.00%"}}]
[null,"Sprzedaż i marketing","Inne wydatki (określ)",{"$nulls":3},{"$f":"IFERROR(IF(Przychód_ze_sprzedaży=0,\"-\",Wydatki_operacyjne[[#This Row],[Okres bieżący]]/Przychód_ze_sprzedaży),\"-\")","v":"-"},{"$f":"IFERROR(IF(Wydatki_operacyjne[[#This Row],[Okres poprzedni]]=Wydatki_operacyjne[[#This Row],[Okres bieżący]],0,IF(Wydatki_operacyjne[[#This Row],[Okres bieżący]]>Wydatki_operacyjne[[#This Row],[Okres poprzedni]],ABS((Wydatki_operacyjne[[#This Row],[Okres bieżący]]/Wydatki_operacyjne[[#This Row],[Okres poprzedni]])-1),IF(AND(Wydatki_operacyjne[[#This Row],[Okres bieżący]]<Wydatki_operacyjne[[#This Row],[Okres poprzedni]],Wydatki_operacyjne[[#This Row],[Okres poprzedni]]<0),-((Wydatki_operacyjne[[#This Row],[Okres bieżący]]/Wydatki_operacyjne[[#This Row],[Okres poprzedni]])-1),(Wydatki_operacyjne[[#This Row],[Okres bieżący]]/Wydatki_operacyjne[[#This Row],[Okres poprzedni]])-1))),\"-\")","v":{"v":0,"d":"0.00%"}},{"$f":"IFERROR(IF(Wydatki_operacyjne[[#This Row],[Budżet]]=Wydatki_operacyjne[[#This Row],[Okres bieżący]],0,IF(Wydatki_operacyjne[[#This Row],[Okres bieżący]]>Wydatki_operacyjne[[#This Row],[Budżet]],ABS((Wydatki_operacyjne[[#This Row],[Okres bieżący]]/Wydatki_operacyjne[[#This Row],[Budżet]])-1),IF(AND(Wydatki_operacyjne[[#This Row],[Okres bieżący]]<Wydatki_operacyjne[[#This Row],[Budżet]],Wydatki_operacyjne[[#This Row],[Budżet]]<0),-((Wydatki_operacyjne[[#This Row],[Okres bieżący]]/Wydatki_operacyjne[[#This Row],[Budżet]])-1),(Wydatki_operacyjne[[#This Row],[Okres bieżący]]/Wydatki_operacyjne[[#This Row],[Budżet]])-1))),\"-\")","v":{"v":0,"d":"0.00%"}}]
[null,"Badania i rozwój","Licencje technologiczne",{"$nulls":3},{"$f":"IFERROR(IF(Przychód_ze_sprzedaży=0,\"-\",Wydatki_operacyjne[[#This Row],[Okres bieżący]]/Przychód_ze_sprzedaży),\"-\")","v":"-"},{"$f":"IFERROR(IF(Wydatki_operacyjne[[#This Row],[Okres poprzedni]]=Wydatki_operacyjne[[#This Row],[Okres bieżący]],0,IF(Wydatki_operacyjne[[#This Row],[Okres bieżący]]>Wydatki_operacyjne[[#This Row],[Okres poprzedni]],ABS((Wydatki_operacyjne[[#This Row],[Okres bieżący]]/Wydatki_operacyjne[[#This Row],[Okres poprzedni]])-1),IF(AND(Wydatki_operacyjne[[#This Row],[Okres bieżący]]<Wydatki_operacyjne[[#This Row],[Okres poprzedni]],Wydatki_operacyjne[[#This Row],[Okres poprzedni]]<0),-((Wydatki_operacyjne[[#This Row],[Okres bieżący]]/Wydatki_operacyjne[[#This Row],[Okres poprzedni]])-1),(Wydatki_operacyjne[[#This Row],[Okres bieżący]]/Wydatki_operacyjne[[#This Row],[Okres poprzedni]])-1))),\"-\")","v":{"v":0,"d":"0.00%"}},{"$f":"IFERROR(IF(Wydatki_operacyjne[[#This Row],[Budżet]]=Wydatki_operacyjne[[#This Row],[Okres bieżący]],0,IF(Wydatki_operacyjne[[#This Row],[Okres bieżący]]>Wydatki_operacyjne[[#This Row],[Budżet]],ABS((Wydatki_operacyjne[[#This Row],[Okres bieżący]]/Wydatki_operacyjne[[#This Row],[Budżet]])-1),IF(AND(Wydatki_operacyjne[[#This Row],[Okres bieżący]]<Wydatki_operacyjne[[#This Row],[Budżet]],Wydatki_operacyjne[[#This Row],[Budżet]]<0),-((Wydatki_operacyjne[[#This Row],[Okres bieżący]]/Wydatki_operacyjne[[#This Row],[Budżet]])-1),(Wydatki_operacyjne[[#This Row],[Okres bieżący]]/Wydatki_operacyjne[[#This Row],[Budżet]])-1))),\"-\")","v":{"v":0,"d":"0.00%"}}]
[null,"Badania i rozwój","Patenty ",{"$nulls":3},{"$f":"IFERROR(IF(Przychód_ze_sprzedaży=0,\"-\",Wydatki_operacyjne[[#This Row],[Okres bieżący]]/Przychód_ze_sprzedaży),\"-\")","v":"-"},{"$f":"IFERROR(IF(Wydatki_operacyjne[[#This Row],[Okres poprzedni]]=Wydatki_operacyjne[[#This Row],[Okres bieżący]],0,IF(Wydatki_operacyjne[[#This Row],[Okres bieżący]]>Wydatki_operacyjne[[#This Row],[Okres poprzedni]],ABS((Wydatki_operacyjne[[#This Row],[Okres bieżący]]/Wydatki_operacyjne[[#This Row],[Okres poprzedni]])-1),IF(AND(Wydatki_operacyjne[[#This Row],[Okres bieżący]]<Wydatki_operacyjne[[#This Row],[Okres poprzedni]],Wydatki_operacyjne[[#This Row],[Okres poprzedni]]<0),-((Wydatki_operacyjne[[#This Row],[Okres bieżący]]/Wydatki_operacyjne[[#This Row],[Okres poprzedni]])-1),(Wydatki_operacyjne[[#This Row],[Okres bieżący]]/Wydatki_operacyjne[[#This Row],[Okres poprzedni]])-1))),\"-\")","v":{"v":0,"d":"0.00%"}},{"$f":"IFERROR(IF(Wydatki_operacyjne[[#This Row],[Budżet]]=Wydatki_operacyjne[[#This Row],[Okres bieżący]],0,IF(Wydatki_operacyjne[[#This Row],[Okres bieżący]]>Wydatki_operacyjne[[#This Row],[Budżet]],ABS((Wydatki_operacyjne[[#This Row],[Okres bieżący]]/Wydatki_operacyjne[[#This Row],[Budżet]])-1),IF(AND(Wydatki_operacyjne[[#This Row],[Okres bieżący]]<Wydatki_operacyjne[[#This Row],[Budżet]],Wydatki_operacyjne[[#This Row],[Budżet]]<0),-((Wydatki_operacyjne[[#This Row],[Okres bieżący]]/Wydatki_operacyjne[[#This Row],[Budżet]])-1),(Wydatki_operacyjne[[#This Row],[Okres bieżący]]/Wydatki_operacyjne[[#This Row],[Budżet]])-1))),\"-\")","v":{"v":0,"d":"0.00%"}}]
[null,"Badania i rozwój","Inne wydatki (określ)",{"$nulls":3},{"$f":"IFERROR(IF(Przychód_ze_sprzedaży=0,\"-\",Wydatki_operacyjne[[#This Row],[Okres bieżący]]/Przychód_ze_sprzedaży),\"-\")","v":"-"},{"$f":"IFERROR(IF(Wydatki_operacyjne[[#This Row],[Okres poprzedni]]=Wydatki_operacyjne[[#This Row],[Okres bieżący]],0,IF(Wydatki_operacyjne[[#This Row],[Okres bieżący]]>Wydatki_operacyjne[[#This Row],[Okres poprzedni]],ABS((Wydatki_operacyjne[[#This Row],[Okres bieżący]]/Wydatki_operacyjne[[#This Row],[Okres poprzedni]])-1),IF(AND(Wydatki_operacyjne[[#This Row],[Okres bieżący]]<Wydatki_operacyjne[[#This Row],[Okres poprzedni]],Wydatki_operacyjne[[#This Row],[Okres poprzedni]]<0),-((Wydatki_operacyjne[[#This Row],[Okres bieżący]]/Wydatki_operacyjne[[#This Row],[Okres poprzedni]])-1),(Wydatki_operacyjne[[#This Row],[Okres bieżący]]/Wydatki_operacyjne[[#This Row],[Okres poprzedni]])-1))),\"-\")","v":{"v":0,"d":"0.00%"}},{"$f":"IFERROR(IF(Wydatki_operacyjne[[#This Row],[Budżet]]=Wydatki_operacyjne[[#This Row],[Okres bieżący]],0,IF(Wydatki_operacyjne[[#This Row],[Okres bieżący]]>Wydatki_operacyjne[[#This Row],[Budżet]],ABS((Wydatki_operacyjne[[#This Row],[Okres bieżący]]/Wydatki_operacyjne[[#This Row],[Budżet]])-1),IF(AND(Wydatki_operacyjne[[#This Row],[Okres bieżący]]<Wydatki_operacyjne[[#This Row],[Budżet]],Wydatki_operacyjne[[#This Row],[Budżet]]<0),-((Wydatki_operacyjne[[#This Row],[Okres bieżący]]/Wydatki_operacyjne[[#This Row],[Budżet]])-1),(Wydatki_operacyjne[[#This Row],[Okres bieżący]]/Wydatki_operacyjne[[#This Row],[Budżet]])-1))),\"-\")","v":{"v":0,"d":"0.00%"}}]
[null,"Badania i rozwój","Inne wydatki (określ)",{"$nulls":3},{"$f":"IFERROR(IF(Przychód_ze_sprzedaży=0,\"-\",Wydatki_operacyjne[[#This Row],[Okres bieżący]]/Przychód_ze_sprzedaży),\"-\")","v":"-"},{"$f":"IFERROR(IF(Wydatki_operacyjne[[#This Row],[Okres poprzedni]]=Wydatki_operacyjne[[#This Row],[Okres bieżący]],0,IF(Wydatki_operacyjne[[#This Row],[Okres bieżący]]>Wydatki_operacyjne[[#This Row],[Okres poprzedni]],ABS((Wydatki_operacyjne[[#This Row],[Okres bieżący]]/Wydatki_operacyjne[[#This Row],[Okres poprzedni]])-1),IF(AND(Wydatki_operacyjne[[#This Row],[Okres bieżący]]<Wydatki_operacyjne[[#This Row],[Okres poprzedni]],Wydatki_operacyjne[[#This Row],[Okres poprzedni]]<0),-((Wydatki_operacyjne[[#This Row],[Okres bieżący]]/Wydatki_operacyjne[[#This Row],[Okres poprzedni]])-1),(Wydatki_operacyjne[[#This Row],[Okres bieżący]]/Wydatki_operacyjne[[#This Row],[Okres poprzedni]])-1))),\"-\")","v":{"v":0,"d":"0.00%"}},{"$f":"IFERROR(IF(Wydatki_operacyjne[[#This Row],[Budżet]]=Wydatki_operacyjne[[#This Row],[Okres bieżący]],0,IF(Wydatki_operacyjne[[#This Row],[Okres bieżący]]>Wydatki_operacyjne[[#This Row],[Budżet]],ABS((Wydatki_operacyjne[[#This Row],[Okres bieżący]]/Wydatki_operacyjne[[#This Row],[Budżet]])-1),IF(AND(Wydatki_operacyjne[[#This Row],[Okres bieżący]]<Wydatki_operacyjne[[#This Row],[Budżet]],Wydatki_operacyjne[[#This Row],[Budżet]]<0),-((Wydatki_operacyjne[[#This Row],[Okres bieżący]]/Wydatki_operacyjne[[#This Row],[Budżet]])-1),(Wydatki_operacyjne[[#This Row],[Okres bieżący]]/Wydatki_operacyjne[[#This Row],[Budżet]])-1))),\"-\")","v":{"v":0,"d":"0.00%"}}]
[null,"Ogólne i administracyjne","Wynagrodzenia",{"$nulls":3},{"$f":"IFERROR(IF(Przychód_ze_sprzedaży=0,\"-\",Wydatki_operacyjne[[#This Row],[Okres bieżący]]/Przychód_ze_sprzedaży),\"-\")","v":"-"},{"$f":"IFERROR(IF(Wydatki_operacyjne[[#This Row],[Okres poprzedni]]=Wydatki_operacyjne[[#This Row],[Okres bieżący]],0,IF(Wydatki_operacyjne[[#This Row],[Okres bieżący]]>Wydatki_operacyjne[[#This Row],[Okres poprzedni]],ABS((Wydatki_operacyjne[[#This Row],[Okres bieżący]]/Wydatki_operacyjne[[#This Row],[Okres poprzedni]])-1),IF(AND(Wydatki_operacyjne[[#This Row],[Okres bieżący]]<Wydatki_operacyjne[[#This Row],[Okres poprzedni]],Wydatki_operacyjne[[#This Row],[Okres poprzedni]]<0),-((Wydatki_operacyjne[[#This Row],[Okres bieżący]]/Wydatki_operacyjne[[#This Row],[Okres poprzedni]])-1),(Wydatki_operacyjne[[#This Row],[Okres bieżący]]/Wydatki_operacyjne[[#This Row],[Okres poprzedni]])-1))),\"-\")","v":{"v":0,"d":"0.00%"}},{"$f":"IFERROR(IF(Wydatki_operacyjne[[#This Row],[Budżet]]=Wydatki_operacyjne[[#This Row],[Okres bieżący]],0,IF(Wydatki_operacyjne[[#This Row],[Okres bieżący]]>Wydatki_operacyjne[[#This Row],[Budżet]],ABS((Wydatki_operacyjne[[#This Row],[Okres bieżący]]/Wydatki_operacyjne[[#This Row],[Budżet]])-1),IF(AND(Wydatki_operacyjne[[#This Row],[Okres bieżący]]<Wydatki_operacyjne[[#This Row],[Budżet]],Wydatki_operacyjne[[#This Row],[Budżet]]<0),-((Wydatki_operacyjne[[#This Row],[Okres bieżący]]/Wydatki_operacyjne[[#This Row],[Budżet]])-1),(Wydatki_operacyjne[[#This Row],[Okres bieżący]]/Wydatki_operacyjne[[#This Row],[Budżet]])-1))),\"-\")","v":{"v":0,"d":"0.00%"}}]
[null,"Ogólne i administracyjne","Usługi zewnętrzne",{"$nulls":3},{"$f":"IFERROR(IF(Przychód_ze_sprzedaży=0,\"-\",Wydatki_operacyjne[[#This Row],[Okres bieżący]]/Przychód_ze_sprzedaży),\"-\")","v":"-"},{"$f":"IFERROR(IF(Wydatki_operacyjne[[#This Row],[Okres poprzedni]]=Wydatki_operacyjne[[#This Row],[Okres bieżący]],0,IF(Wydatki_operacyjne[[#This Row],[Okres bieżący]]>Wydatki_operacyjne[[#This Row],[Okres poprzedni]],ABS((Wydatki_operacyjne[[#This Row],[Okres bieżący]]/Wydatki_operacyjne[[#This Row],[Okres poprzedni]])-1),IF(AND(Wydatki_operacyjne[[#This Row],[Okres bieżący]]<Wydatki_operacyjne[[#This Row],[Okres poprzedni]],Wydatki_operacyjne[[#This Row],[Okres poprzedni]]<0),-((Wydatki_operacyjne[[#This Row],[Okres bieżący]]/Wydatki_operacyjne[[#This Row],[Okres poprzedni]])-1),(Wydatki_operacyjne[[#This Row],[Okres bieżący]]/Wydatki_operacyjne[[#This Row],[Okres poprzedni]])-1))),\"-\")","v":{"v":0,"d":"0.00%"}},{"$f":"IFERROR(IF(Wydatki_operacyjne[[#This Row],[Budżet]]=Wydatki_operacyjne[[#This Row],[Okres bieżący]],0,IF(Wydatki_operacyjne[[#This Row],[Okres bieżący]]>Wydatki_operacyjne[[#This Row],[Budżet]],ABS((Wydatki_operacyjne[[#This Row],[Okres bieżący]]/Wydatki_operacyjne[[#This Row],[Budżet]])-1),IF(AND(Wydatki_operacyjne[[#This Row],[Okres bieżący]]<Wydatki_operacyjne[[#This Row],[Budżet]],Wydatki_operacyjne[[#This Row],[Budżet]]<0),-((Wydatki_operacyjne[[#This Row],[Okres bieżący]]/Wydatki_operacyjne[[#This Row],[Budżet]])-1),(Wydatki_operacyjne[[#This Row],[Okres bieżący]]/Wydatki_operacyjne[[#This Row],[Budżet]])-1))),\"-\")","v":{"v":0,"d":"0.00%"}}]
[null,"Ogólne i administracyjne","Materiały",{"$nulls":3},{"$f":"IFERROR(IF(Przychód_ze_sprzedaży=0,\"-\",Wydatki_operacyjne[[#This Row],[Okres bieżący]]/Przychód_ze_sprzedaży),\"-\")","v":"-"},{"$f":"IFERROR(IF(Wydatki_operacyjne[[#This Row],[Okres poprzedni]]=Wydatki_operacyjne[[#This Row],[Okres bieżący]],0,IF(Wydatki_operacyjne[[#This Row],[Okres bieżący]]>Wydatki_operacyjne[[#This Row],[Okres poprzedni]],ABS((Wydatki_operacyjne[[#This Row],[Okres bieżący]]/Wydatki_operacyjne[[#This Row],[Okres poprzedni]])-1),IF(AND(Wydatki_operacyjne[[#This Row],[Okres bieżący]]<Wydatki_operacyjne[[#This Row],[Okres poprzedni]],Wydatki_operacyjne[[#This Row],[Okres poprzedni]]<0),-((Wydatki_operacyjne[[#This Row],[Okres bieżący]]/Wydatki_operacyjne[[#This Row],[Okres poprzedni]])-1),(Wydatki_operacyjne[[#This Row],[Okres bieżący]]/Wydatki_operacyjne[[#This Row],[Okres poprzedni]])-1))),\"-\")","v":{"v":0,"d":"0.00%"}},{"$f":"IFERROR(IF(Wydatki_operacyjne[[#This Row],[Budżet]]=Wydatki_operacyjne[[#This Row],[Okres bieżący]],0,IF(Wydatki_operacyjne[[#This Row],[Okres bieżący]]>Wydatki_operacyjne[[#This Row],[Budżet]],ABS((Wydatki_operacyjne[[#This Row],[Okres bieżący]]/Wydatki_operacyjne[[#This Row],[Budżet]])-1),IF(AND(Wydatki_operacyjne[[#This Row],[Okres bieżący]]<Wydatki_operacyjne[[#This Row],[Budżet]],Wydatki_operacyjne[[#This Row],[Budżet]]<0),-((Wydatki_operacyjne[[#This Row],[Okres bieżący]]/Wydatki_operacyjne[[#This Row],[Budżet]])-1),(Wydatki_operacyjne[[#This Row],[Okres bieżący]]/Wydatki_operacyjne[[#This Row],[Budżet]])-1))),\"-\")","v":{"v":0,"d":"0.00%"}}]
[null,"Ogólne i administracyjne","Posiłki i rozrywka",{"$nulls":3},{"$f":"IFERROR(IF(Przychód_ze_sprzedaży=0,\"-\",Wydatki_operacyjne[[#This Row],[Okres bieżący]]/Przychód_ze_sprzedaży),\"-\")","v":"-"},{"$f":"IFERROR(IF(Wydatki_operacyjne[[#This Row],[Okres poprzedni]]=Wydatki_operacyjne[[#This Row],[Okres bieżący]],0,IF(Wydatki_operacyjne[[#This Row],[Okres bieżący]]>Wydatki_operacyjne[[#This Row],[Okres poprzedni]],ABS((Wydatki_operacyjne[[#This Row],[Okres bieżący]]/Wydatki_operacyjne[[#This Row],[Okres poprzedni]])-1),IF(AND(Wydatki_operacyjne[[#This Row],[Okres bieżący]]<Wydatki_operacyjne[[#This Row],[Okres poprzedni]],Wydatki_operacyjne[[#This Row],[Okres poprzedni]]<0),-((Wydatki_operacyjne[[#This Row],[Okres bieżący]]/Wydatki_operacyjne[[#This Row],[Okres poprzedni]])-1),(Wydatki_operacyjne[[#This Row],[Okres bieżący]]/Wydatki_operacyjne[[#This Row],[Okres poprzedni]])-1))),\"-\")","v":{"v":0,"d":"0.00%"}},{"$f":"IFERROR(IF(Wydatki_operacyjne[[#This Row],[Budżet]]=Wydatki_operacyjne[[#This Row],[Okres bieżący]],0,IF(Wydatki_operacyjne[[#This Row],[Okres bieżący]]>Wydatki_operacyjne[[#This Row],[Budżet]],ABS((Wydatki_operacyjne[[#This Row],[Okres bieżący]]/Wydatki_operacyjne[[#This Row],[Budżet]])-1),IF(AND(Wydatki_operacyjne[[#This Row],[Okres bieżący]]<Wydatki_operacyjne[[#This Row],[Budżet]],Wydatki_operacyjne[[#This Row],[Budżet]]<0),-((Wydatki_operacyjne[[#This Row],[Okres bieżący]]/Wydatki_operacyjne[[#This Row],[Budżet]])-1),(Wydatki_operacyjne[[#This Row],[Okres bieżący]]/Wydatki_operacyjne[[#This Row],[Budżet]])-1))),\"-\")","v":{"v":0,"d":"0.00%"}}]
[null,"Ogólne i administracyjne","Czynsz",{"$nulls":3},{"$f":"IFERROR(IF(Przychód_ze_sprzedaży=0,\"-\",Wydatki_operacyjne[[#This Row],[Okres bieżący]]/Przychód_ze_sprzedaży),\"-\")","v":"-"},{"$f":"IFERROR(IF(Wydatki_operacyjne[[#This Row],[Okres poprzedni]]=Wydatki_operacyjne[[#This Row],[Okres bieżący]],0,IF(Wydatki_operacyjne[[#This Row],[Okres bieżący]]>Wydatki_operacyjne[[#This Row],[Okres poprzedni]],ABS((Wydatki_operacyjne[[#This Row],[Okres bieżący]]/Wydatki_operacyjne[[#This Row],[Okres poprzedni]])-1),IF(AND(Wydatki_operacyjne[[#This Row],[Okres bieżący]]<Wydatki_operacyjne[[#This Row],[Okres poprzedni]],Wydatki_operacyjne[[#This Row],[Okres poprzedni]]<0),-((Wydatki_operacyjne[[#This Row],[Okres bieżący]]/Wydatki_operacyjne[[#This Row],[Okres poprzedni]])-1),(Wydatki_operacyjne[[#This Row],[Okres bieżący]]/Wydatki_operacyjne[[#This Row],[Okres poprzedni]])-1))),\"-\")","v":{"v":0,"d":"0.00%"}},{"$f":"IFERROR(IF(Wydatki_operacyjne[[#This Row],[Budżet]]=Wydatki_operacyjne[[#This Row],[Okres bieżący]],0,IF(Wydatki_operacyjne[[#This Row],[Okres bieżący]]>Wydatki_operacyjne[[#This Row],[Budżet]],ABS((Wydatki_operacyjne[[#This Row],[Okres bieżący]]/Wydatki_operacyjne[[#This Row],[Budżet]])-1),IF(AND(Wydatki_operacyjne[[#This Row],[Okres bieżący]]<Wydatki_operacyjne[[#This Row],[Budżet]],Wydatki_operacyjne[[#This Row],[Budżet]]<0),-((Wydatki_operacyjne[[#This Row],[Okres bieżący]]/Wydatki_operacyjne[[#This Row],[Budżet]])-1),(Wydatki_operacyjne[[#This Row],[Okres bieżący]]/Wydatki_operacyjne[[#This Row],[Budżet]])-1))),\"-\")","v":{"v":0,"d":"0.00%"}}]
[null,"Ogólne i administracyjne","Telefon",{"$nulls":3},{"$f":"IFERROR(IF(Przychód_ze_sprzedaży=0,\"-\",Wydatki_operacyjne[[#This Row],[Okres bieżący]]/Przychód_ze_sprzedaży),\"-\")","v":"-"},{"$f":"IFERROR(IF(Wydatki_operacyjne[[#This Row],[Okres poprzedni]]=Wydatki_operacyjne[[#This Row],[Okres bieżący]],0,IF(Wydatki_operacyjne[[#This Row],[Okres bieżący]]>Wydatki_operacyjne[[#This Row],[Okres poprzedni]],ABS((Wydatki_operacyjne[[#This Row],[Okres bieżący]]/Wydatki_operacyjne[[#This Row],[Okres poprzedni]])-1),IF(AND(Wydatki_operacyjne[[#This Row],[Okres bieżący]]<Wydatki_operacyjne[[#This Row],[Okres poprzedni]],Wydatki_operacyjne[[#This Row],[Okres poprzedni]]<0),-((Wydatki_operacyjne[[#This Row],[Okres bieżący]]/Wydatki_operacyjne[[#This Row],[Okres poprzedni]])-1),(Wydatki_operacyjne[[#This Row],[Okres bieżący]]/Wydatki_operacyjne[[#This Row],[Okres poprzedni]])-1))),\"-\")","v":{"v":0,"d":"0.00%"}},{"$f":"IFERROR(IF(Wydatki_operacyjne[[#This Row],[Budżet]]=Wydatki_operacyjne[[#This Row],[Okres bieżący]],0,IF(Wydatki_operacyjne[[#This Row],[Okres bieżący]]>Wydatki_operacyjne[[#This Row],[Budżet]],ABS((Wydatki_operacyjne[[#This Row],[Okres bieżący]]/Wydatki_operacyjne[[#This Row],[Budżet]])-1),IF(AND(Wydatki_operacyjne[[#This Row],[Okres bieżący]]<Wydatki_operacyjne[[#This Row],[Budżet]],Wydatki_operacyjne[[#This Row],[Budżet]]<0),-((Wydatki_operacyjne[[#This Row],[Okres bieżący]]/Wydatki_operacyjne[[#This Row],[Budżet]])-1),(Wydatki_operacyjne[[#This Row],[Okres bieżący]]/Wydatki_operacyjne[[#This Row],[Budżet]])-1))),\"-\")","v":{"v":0,"d":"0.00%"}}]
[null,"Ogólne i administracyjne","Usługi komunalne",{"$nulls":3},{"$f":"IFERROR(IF(Przychód_ze_sprzedaży=0,\"-\",Wydatki_operacyjne[[#This Row],[Okres bieżący]]/Przychód_ze_sprzedaży),\"-\")","v":"-"},{"$f":"IFERROR(IF(Wydatki_operacyjne[[#This Row],[Okres poprzedni]]=Wydatki_operacyjne[[#This Row],[Okres bieżący]],0,IF(Wydatki_operacyjne[[#This Row],[Okres bieżący]]>Wydatki_operacyjne[[#This Row],[Okres poprzedni]],ABS((Wydatki_operacyjne[[#This Row],[Okres bieżący]]/Wydatki_operacyjne[[#This Row],[Okres poprzedni]])-1),IF(AND(Wydatki_operacyjne[[#This Row],[Okres bieżący]]<Wydatki_operacyjne[[#This Row],[Okres poprzedni]],Wydatki_operacyjne[[#This Row],[Okres poprzedni]]<0),-((Wydatki_operacyjne[[#This Row],[Okres bieżący]]/Wydatki_operacyjne[[#This Row],[Okres poprzedni]])-1),(Wydatki_operacyjne[[#This Row],[Okres bieżący]]/Wydatki_operacyjne[[#This Row],[Okres poprzedni]])-1))),\"-\")","v":{"v":0,"d":"0.00%"}},{"$f":"IFERROR(IF(Wydatki_operacyjne[[#This Row],[Budżet]]=Wydatki_operacyjne[[#This Row],[Okres bieżący]],0,IF(Wydatki_operacyjne[[#This Row],[Okres bieżący]]>Wydatki_operacyjne[[#This Row],[Budżet]],ABS((Wydatki_operacyjne[[#This Row],[Okres bieżący]]/Wydatki_operacyjne[[#This Row],[Budżet]])-1),IF(AND(Wydatki_operacyjne[[#This Row],[Okres bieżący]]<Wydatki_operacyjne[[#This Row],[Budżet]],Wydatki_operacyjne[[#This Row],[Budżet]]<0),-((Wydatki_operacyjne[[#This Row],[Okres bieżący]]/Wydatki_operacyjne[[#This Row],[Budżet]])-1),(Wydatki_operacyjne[[#This Row],[Okres bieżący]]/Wydatki_operacyjne[[#This Row],[Budżet]])-1))),\"-\")","v":{"v":0,"d":"0.00%"}}]
[null,"Ogólne i administracyjne","Amortyzacja",{"$nulls":3},{"$f":"IFERROR(IF(Przychód_ze_sprzedaży=0,\"-\",Wydatki_operacyjne[[#This Row],[Okres bieżący]]/Przychód_ze_sprzedaży),\"-\")","v":"-"},{"$f":"IFERROR(IF(Wydatki_operacyjne[[#This Row],[Okres poprzedni]]=Wydatki_operacyjne[[#This Row],[Okres bieżący]],0,IF(Wydatki_operacyjne[[#This Row],[Okres bieżący]]>Wydatki_operacyjne[[#This Row],[Okres poprzedni]],ABS((Wydatki_operacyjne[[#This Row],[Okres bieżący]]/Wydatki_operacyjne[[#This Row],[Okres poprzedni]])-1),IF(AND(Wydatki_operacyjne[[#This Row],[Okres bieżący]]<Wydatki_operacyjne[[#This Row],[Okres poprzedni]],Wydatki_operacyjne[[#This Row],[Okres poprzedni]]<0),-((Wydatki_operacyjne[[#This Row],[Okres bieżący]]/Wydatki_operacyjne[[#This Row],[Okres poprzedni]])-1),(Wydatki_operacyjne[[#This Row],[Okres bieżący]]/Wydatki_operacyjne[[#This Row],[Okres poprzedni]])-1))),\"-\")","v":{"v":0,"d":"0.00%"}},{"$f":"IFERROR(IF(Wydatki_operacyjne[[#This Row],[Budżet]]=Wydatki_operacyjne[[#This Row],[Okres bieżący]],0,IF(Wydatki_operacyjne[[#This Row],[Okres bieżący]]>Wydatki_operacyjne[[#This Row],[Budżet]],ABS((Wydatki_operacyjne[[#This Row],[Okres bieżący]]/Wydatki_operacyjne[[#This Row],[Budżet]])-1),IF(AND(Wydatki_operacyjne[[#This Row],[Okres bieżący]]<Wydatki_operacyjne[[#This Row],[Budżet]],Wydatki_operacyjne[[#This Row],[Budżet]]<0),-((Wydatki_operacyjne[[#This Row],[Okres bieżący]]/Wydatki_operacyjne[[#This Row],[Budżet]])-1),(Wydatki_operacyjne[[#This Row],[Okres bieżący]]/Wydatki_operacyjne[[#This Row],[Budżet]])-1))),\"-\")","v":{"v":0,"d":"0.00%"}}]
[null,"Ogólne i administracyjne","Ubezpieczenie",{"$nulls":3},{"$f":"IFERROR(IF(Przychód_ze_sprzedaży=0,\"-\",Wydatki_operacyjne[[#This Row],[Okres bieżący]]/Przychód_ze_sprzedaży),\"-\")","v":"-"},{"$f":"IFERROR(IF(Wydatki_operacyjne[[#This Row],[Okres poprzedni]]=Wydatki_operacyjne[[#This Row],[Okres bieżący]],0,IF(Wydatki_operacyjne[[#This Row],[Okres bieżący]]>Wydatki_operacyjne[[#This Row],[Okres poprzedni]],ABS((Wydatki_operacyjne[[#This Row],[Okres bieżący]]/Wydatki_operacyjne[[#This Row],[Okres poprzedni]])-1),IF(AND(Wydatki_operacyjne[[#This Row],[Okres bieżący]]<Wydatki_operacyjne[[#This Row],[Okres poprzedni]],Wydatki_operacyjne[[#This Row],[Okres poprzedni]]<0),-((Wydatki_operacyjne[[#This Row],[Okres bieżący]]/Wydatki_operacyjne[[#This Row],[Okres poprzedni]])-1),(Wydatki_operacyjne[[#This Row],[Okres bieżący]]/Wydatki_operacyjne[[#This Row],[Okres poprzedni]])-1))),\"-\")","v":{"v":0,"d":"0.00%"}},{"$f":"IFERROR(IF(Wydatki_operacyjne[[#This Row],[Budżet]]=Wydatki_operacyjne[[#This Row],[Okres bieżący]],0,IF(Wydatki_operacyjne[[#This Row],[Okres bieżący]]>Wydatki_operacyjne[[#This Row],[Budżet]],ABS((Wydatki_operacyjne[[#This Row],[Okres bieżący]]/Wydatki_operacyjne[[#This Row],[Budżet]])-1),IF(AND(Wydatki_operacyjne[[#This Row],[Okres bieżący]]<Wydatki_operacyjne[[#This Row],[Budżet]],Wydatki_operacyjne[[#This Row],[Budżet]]<0),-((Wydatki_operacyjne[[#This Row],[Okres bieżący]]/Wydatki_operacyjne[[#This Row],[Budżet]])-1),(Wydatki_operacyjne[[#This Row],[Okres bieżący]]/Wydatki_operacyjne[[#This Row],[Budżet]])-1))),\"-\")","v":{"v":0,"d":"0.00%"}}]
[null,"Ogólne i administracyjne","Naprawy i konserwacja",{"$nulls":3},{"$f":"IFERROR(IF(Przychód_ze_sprzedaży=0,\"-\",Wydatki_operacyjne[[#This Row],[Okres bieżący]]/Przychód_ze_sprzedaży),\"-\")","v":"-"},{"$f":"IFERROR(IF(Wydatki_operacyjne[[#This Row],[Okres poprzedni]]=Wydatki_operacyjne[[#This Row],[Okres bieżący]],0,IF(Wydatki_operacyjne[[#This Row],[Okres bieżący]]>Wydatki_operacyjne[[#This Row],[Okres poprzedni]],ABS((Wydatki_operacyjne[[#This Row],[Okres bieżący]]/Wydatki_operacyjne[[#This Row],[Okres poprzedni]])-1),IF(AND(Wydatki_operacyjne[[#This Row],[Okres bieżący]]<Wydatki_operacyjne[[#This Row],[Okres poprzedni]],Wydatki_operacyjne[[#This Row],[Okres poprzedni]]<0),-((Wydatki_operacyjne[[#This Row],[Okres bieżący]]/Wydatki_operacyjne[[#This Row],[Okres poprzedni]])-1),(Wydatki_operacyjne[[#This Row],[Okres bieżący]]/Wydatki_operacyjne[[#This Row],[Okres poprzedni]])-1))),\"-\")","v":{"v":0,"d":"0.00%"}},{"$f":"IFERROR(IF(Wydatki_operacyjne[[#This Row],[Budżet]]=Wydatki_operacyjne[[#This Row],[Okres bieżący]],0,IF(Wydatki_operacyjne[[#This Row],[Okres bieżący]]>Wydatki_operacyjne[[#This Row],[Budżet]],ABS((Wydatki_operacyjne[[#This Row],[Okres bieżący]]/Wydatki_operacyjne[[#This Row],[Budżet]])-1),IF(AND(Wydatki_operacyjne[[#This Row],[Okres bieżący]]<Wydatki_operacyjne[[#This Row],[Budżet]],Wydatki_operacyjne[[#This Row],[Budżet]]<0),-((Wydatki_operacyjne[[#This Row],[Okres bieżący]]/Wydatki_operacyjne[[#This Row],[Budżet]])-1),(Wydatki_operacyjne[[#This Row],[Okres bieżący]]/Wydatki_operacyjne[[#This Row],[Budżet]])-1))),\"-\")","v":{"v":0,"d":"0.00%"}}]
[null,"Ogólne i administracyjne","Inne wydatki (określ)",{"$nulls":3},{"$f":"IFERROR(IF(Przychód_ze_sprzedaży=0,\"-\",Wydatki_operacyjne[[#This Row],[Okres bieżący]]/Przychód_ze_sprzedaży),\"-\")","v":"-"},{"$f":"IFERROR(IF(Wydatki_operacyjne[[#This Row],[Okres poprzedni]]=Wydatki_operacyjne[[#This Row],[Okres bieżący]],0,IF(Wydatki_operacyjne[[#This Row],[Okres bieżący]]>Wydatki_operacyjne[[#This Row],[Okres poprzedni]],ABS((Wydatki_operacyjne[[#This Row],[Okres bieżący]]/Wydatki_operacyjne[[#This Row],[Okres poprzedni]])-1),IF(AND(Wydatki_operacyjne[[#This Row],[Okres bieżący]]<Wydatki_operacyjne[[#This Row],[Okres poprzedni]],Wydatki_operacyjne[[#This Row],[Okres poprzedni]]<0),-((Wydatki_operacyjne[[#This Row],[Okres bieżący]]/Wydatki_operacyjne[[#This Row],[Okres poprzedni]])-1),(Wydatki_operacyjne[[#This Row],[Okres bieżący]]/Wydatki_operacyjne[[#This Row],[Okres poprzedni]])-1))),\"-\")","v":{"v":0,"d":"0.00%"}},{"$f":"IFERROR(IF(Wydatki_operacyjne[[#This Row],[Budżet]]=Wydatki_operacyjne[[#This Row],[Okres bieżący]],0,IF(Wydatki_operacyjne[[#This Row],[Okres bieżący]]>Wydatki_operacyjne[[#This Row],[Budżet]],ABS((Wydatki_operacyjne[[#This Row],[Okres bieżący]]/Wydatki_operacyjne[[#This Row],[Budżet]])-1),IF(AND(Wydatki_operacyjne[[#This Row],[Okres bieżący]]<Wydatki_operacyjne[[#This Row],[Budżet]],Wydatki_operacyjne[[#This Row],[Budżet]]<0),-((Wydatki_operacyjne[[#This Row],[Okres bieżący]]/Wydatki_operacyjne[[#This Row],[Budżet]])-1),(Wydatki_operacyjne[[#This Row],[Okres bieżący]]/Wydatki_operacyjne[[#This Row],[Budżet]])-1))),\"-\")","v":{"v":0,"d":"0.00%"}}]
[null,"Ogólne i administracyjne","Inne wydatki (określ)",{"$nulls":3},{"$f":"IFERROR(IF(Przychód_ze_sprzedaży=0,\"-\",Wydatki_operacyjne[[#This Row],[Okres bieżący]]/Przychód_ze_sprzedaży),\"-\")","v":"-"},{"$f":"IFERROR(IF(Wydatki_operacyjne[[#This Row],[Okres poprzedni]]=Wydatki_operacyjne[[#This Row],[Okres bieżący]],0,IF(Wydatki_operacyjne[[#This Row],[Okres bieżący]]>Wydatki_operacyjne[[#This Row],[Okres poprzedni]],ABS((Wydatki_operacyjne[[#This Row],[Okres bieżący]]/Wydatki_operacyjne[[#This Row],[Okres poprzedni]])-1),IF(AND(Wydatki_operacyjne[[#This Row],[Okres bieżący]]<Wydatki_operacyjne[[#This Row],[Okres poprzedni]],Wydatki_operacyjne[[#This Row],[Okres poprzedni]]<0),-((Wydatki_operacyjne[[#This Row],[Okres bieżący]]/Wydatki_operacyjne[[#This Row],[Okres poprzedni]])-1),(Wydatki_operacyjne[[#This Row],[Okres bieżący]]/Wydatki_operacyjne[[#This Row],[Okres poprzedni]])-1))),\"-\")","v":{"v":0,"d":"0.00%"}},{"$f":"IFERROR(IF(Wydatki_operacyjne[[#This Row],[Budżet]]=Wydatki_operacyjne[[#This Row],[Okres bieżący]],0,IF(Wydatki_operacyjne[[#This Row],[Okres bieżący]]>Wydatki_operacyjne[[#This Row],[Budżet]],ABS((Wydatki_operacyjne[[#This Row],[Okres bieżący]]/Wydatki_operacyjne[[#This Row],[Budżet]])-1),IF(AND(Wydatki_operacyjne[[#This Row],[Okres bieżący]]<Wydatki_operacyjne[[#This Row],[Budżet]],Wydatki_operacyjne[[#This Row],[Budżet]]<0),-((Wydatki_operacyjne[[#This Row],[Okres bieżący]]/Wydatki_operacyjne[[#This Row],[Budżet]])-1),(Wydatki_operacyjne[[#This Row],[Okres bieżący]]/Wydatki_operacyjne[[#This Row],[Budżet]])-1))),\"-\")","v":{"v":0,"d":"0.00%"}}]
[null,"Suma wydatków operacyjnych",null,{"$f":"SUBTOTAL(109,Wydatki_operacyjne[Okres poprzedni])","v":0},{"$f":"SUBTOTAL(109,Wydatki_operacyjne[Budżet])","v":0},{"$f":"SUBTOTAL(109,Wydatki_operacyjne[Okres bieżący])","v":0},{"$f":"SUBTOTAL(109,Wydatki_operacyjne[Okres bieżący jako procent sprzedaży])","v":{"v":0,"d":"0.00%"}},{"$f":"SUBTOTAL(109,Wydatki_operacyjne[Zmiana procentowa względem okresu poprzedniego])","v":{"v":0,"d":"0.00%"}},{"$f":"SUBTOTAL(109,Wydatki_operacyjne[Zmiana procentowa względem budżetu])","v":{"v":0,"d":"0.00%"}}]

{"sheet":"Podatki","index":4,"n_rows":10,"n_cols":9,"rows_kept":10,"merged":[[0,7,2,8]]}
[null,{"$f":"Tytuł_skoroszytu","v":"Zestawienie zysków i strat"}]
[null,{"$f":"Nazwa_firmy","v":"Nazwa firmy"},"Wyrażona w tysiącach"]
[null,"Podatki",{"$f":"IFERROR(Podatki[[#Totals],[Okres bieżący]],\"-\")","v":0}]
[null,"Typ","Opis","Okres poprzedni","Budżet","Okres bieżący","Okres bieżący jako procent sprzedaży","Zmiana procentowa względem okresu poprzedniego","Zmiana procentowa względem budżetu"]
[null,"Podatki","Podatki dochodowe",{"$nulls":3},{"$f":"IFERROR(IF(Przychód_ze_sprzedaży=0,\"-\",Podatki[[#This Row],[Okres bieżący]]/Przychód_ze_sprzedaży),\"-\")","v":"-"},{"$f":"IFERROR(IF(Podatki[[#This Row],[Okres poprzedni]]=Podatki[[#This Row],[Okres bieżący]],0,IF(Podatki[[#This Row],[Okres bieżący]]>Podatki[[#This Row],[Okres poprzedni]],ABS((Podatki[[#This Row],[Okres bieżący]]/Podatki[[#This Row],[Okres poprzedni]])-1),IF(AND(Podatki[[#This Row],[Okres bieżący]]<Podatki[[#This Row],[Okres poprzedni]],Podatki[[#This Row],[Okres poprzedni]]<0),-((Podatki[[#This Row],[Okres bieżący]]/Podatki[[#This Row],[Okres poprzedni]])-1),(Podatki[[#This Row],[Okres bieżący]]/Podatki[[#This Row],[Okres poprzedni]])-1))),\"-\")","v":{"v":0,"d":"0.00%"}},{"$f":"IFERROR(IF(Podatki[[#This Row],[Budżet]]=Podatki[[#This Row],[Okres bieżący]],0,IF(Podatki[[#This Row],[Okres bieżący]]>Podatki[[#This Row],[Budżet]],ABS((Podatki[[#This Row],[Okres bieżący]]/Podatki[[#This Row],[Budżet]])-1),IF(AND(Podatki[[#This Row],[Okres bieżący]]<Podatki[[#This Row],[Budżet]],Podatki[[#This Row],[Budżet]]<0),-((Podatki[[#This Row],[Okres bieżący]]/Podatki[[#This Row],[Budżet]])-1),(Podatki[[#This Row],[Okres bieżący]]/Podatki[[#This Row],[Budżet]])-1))),\"-\")","v":{"v":0,"d":"0.00%"}}]
[null,"Podatki","Podatki od wynagrodzeń",{"$nulls":3},{"$f":"IFERROR(IF(Przychód_ze_sprzedaży=0,\"-\",Podatki[[#This Row],[Okres bieżący]]/Przychód_ze_sprzedaży),\"-\")","v":"-"},{"$f":"IFERROR(IF(Podatki[[#This Row],[Okres poprzedni]]=Podatki[[#This Row],[Okres bieżący]],0,IF(Podatki[[#This Row],[Okres bieżący]]>Podatki[[#This Row],[Okres poprzedni]],ABS((Podatki[[#This Row],[Okres bieżący]]/Podatki[[#This Row],[Okres poprzedni]])-1),IF(AND(Podatki[[#This Row],[Okres bieżący]]<Podatki[[#This Row],[Okres poprzedni]],Podatki[[#This Row],[Okres poprzedni]]<0),-((Podatki[[#This Row],[Okres bieżący]]/Podatki[[#This Row],[Okres poprzedni]])-1),(Podatki[[#This Row],[Okres bieżący]]/Podatki[[#This Row],[Okres poprzedni]])-1))),\"-\")","v":{"v":0,"d":"0.00%"}},{"$f":"IFERROR(IF(Podatki[[#This Row],[Budżet]]=Podatki[[#This Row],[Okres bieżący]],0,IF(Podatki[[#This Row],[Okres bieżący]]>Podatki[[#This Row],[Budżet]],ABS((Podatki[[#This Row],[Okres bieżący]]/Podatki[[#This Row],[Budżet]])-1),IF(AND(Podatki[[#This Row],[Okres bieżący]]<Podatki[[#This Row],[Budżet]],Podatki[[#This Row],[Budżet]]<0),-((Podatki[[#This Row],[Okres bieżący]]/Podatki[[#This Row],[Budżet]])-1),(Podatki[[#This Row],[Okres bieżący]]/Podatki[[#This Row],[Budżet]])-1))),\"-\")","v":{"v":0,"d":"0.00%"}}]
[null,"Podatki","Podatki od nieruchomości",{"$nulls":3},{"$f":"IFERROR(IF(Przychód_ze_sprzedaży=0,\"-\",Podatki[[#This Row],[Okres bieżący]]/Przychód_ze_sprzedaży),\"-\")","v":"-"},{"$f":"IFERROR(IF(Podatki[[#This Row],[Okres poprzedni]]=Podatki[[#This Row],[Okres bieżący]],0,IF(Podatki[[#This Row],[Okres bieżący]]>Podatki[[#This Row],[Okres poprzedni]],ABS((Podatki[[#This Row],[Okres bieżący]]/Podatki[[#This Row],[Okres poprzedni]])-1),IF(AND(Podatki[[#This Row],[Okres bieżący]]<Podatki[[#This Row],[Okres poprzedni]],Podatki[[#This Row],[Okres poprzedni]]<0),-((Podatki[[#This Row],[Okres bieżący]]/Podatki[[#This Row],[Okres poprzedni]])-1),(Podatki[[#This Row],[Okres bieżący]]/Podatki[[#This Row],[Okres poprzedni]])-1))),\"-\")","v":{"v":0,"d":"0.00%"}},{"$f":"IFERROR(IF(Podatki[[#This Row],[Budżet]]=Podatki[[#This Row],[Okres bieżący]],0,IF(Podatki[[#This Row],[Okres bieżący]]>Podatki[[#This Row],[Budżet]],ABS((Podatki[[#This Row],[Okres bieżący]]/Podatki[[#This Row],[Budżet]])-1),IF(AND(Podatki[[#This Row],[Okres bieżący]]<Podatki[[#This Row],[Budżet]],Podatki[[#This Row],[Budżet]]<0),-((Podatki[[#This Row],[Okres bieżący]]/Podatki[[#This Row],[Budżet]])-1),(Podatki[[#This Row],[Okres bieżący]]/Podatki[[#This Row],[Budżet]])-1))),\"-\")","v":{"v":0,"d":"0.00%"}}]
[null,"Podatki","Inne podatki (określ)",{"$nulls":3},{"$f":"IFERROR(IF(Przychód_ze_sprzedaży=0,\"-\",Podatki[[#This Row],[Okres bieżący]]/Przychód_ze_sprzedaży),\"-\")","v":"-"},{"$f":"IFERROR(IF(Podatki[[#This Row],[Okres poprzedni]]=Podatki[[#This Row],[Okres bieżący]],0,IF(Podatki[[#This Row],[Okres bieżący]]>Podatki[[#This Row],[Okres poprzedni]],ABS((Podatki[[#This Row],[Okres bieżący]]/Podatki[[#This Row],[Okres poprzedni]])-1),IF(AND(Podatki[[#This Row],[Okres bieżący]]<Podatki[[#This Row],[Okres poprzedni]],Podatki[[#This Row],[Okres poprzedni]]<0),-((Podatki[[#This Row],[Okres bieżący]]/Podatki[[#This Row],[Okres poprzedni]])-1),(Podatki[[#This Row],[Okres bieżący]]/Podatki[[#This Row],[Okres poprzedni]])-1))),\"-\")","v":{"v":0,"d":"0.00%"}},{"$f":"IFERROR(IF(Podatki[[#This Row],[Budżet]]=Podatki[[#This Row],[Okres bieżący]],0,IF(Podatki[[#This Row],[Okres bieżący]]>Podatki[[#This Row],[Budżet]],ABS((Podatki[[#This Row],[Okres bieżący]]/Podatki[[#This Row],[Budżet]])-1),IF(AND(Podatki[[#This Row],[Okres bieżący]]<Podatki[[#This Row],[Budżet]],Podatki[[#This Row],[Budżet]]<0),-((Podatki[[#This Row],[Okres bieżący]]/Podatki[[#This Row],[Budżet]])-1),(Podatki[[#This Row],[Okres bieżący]]/Podatki[[#This Row],[Budżet]])-1))),\"-\")","v":{"v":0,"d":"0.00%"}}]
[null,"Podatki","Inne podatki (określ)",{"$nulls":3},{"$f":"IFERROR(IF(Przychód_ze_sprzedaży=0,\"-\",Podatki[[#This Row],[Okres bieżący]]/Przychód_ze_sprzedaży),\"-\")","v":"-"},{"$f":"IFERROR(IF(Podatki[[#This Row],[Okres poprzedni]]=Podatki[[#This Row],[Okres bieżący]],0,IF(Podatki[[#This Row],[Okres bieżący]]>Podatki[[#This Row],[Okres poprzedni]],ABS((Podatki[[#This Row],[Okres bieżący]]/Podatki[[#This Row],[Okres poprzedni]])-1),IF(AND(Podatki[[#This Row],[Okres bieżący]]<Podatki[[#This Row],[Okres poprzedni]],Podatki[[#This Row],[Okres poprzedni]]<0),-((Podatki[[#This Row],[Okres bieżący]]/Podatki[[#This Row],[Okres poprzedni]])-1),(Podatki[[#This Row],[Okres bieżący]]/Podatki[[#This Row],[Okres poprzedni]])-1))),\"-\")","v":{"v":0,"d":"0.00%"}},{"$f":"IFERROR(IF(Podatki[[#This Row],[Budżet]]=Podatki[[#This Row],[Okres bieżący]],0,IF(Podatki[[#This Row],[Okres bieżący]]>Podatki[[#This Row],[Budżet]],ABS((Podatki[[#This Row],[Okres bieżący]]/Podatki[[#This Row],[Budżet]])-1),IF(AND(Podatki[[#This Row],[Okres bieżący]]<Podatki[[#This Row],[Budżet]],Podatki[[#This Row],[Budżet]]<0),-((Podatki[[#This Row],[Okres bieżący]]/Podatki[[#This Row],[Budżet]])-1),(Podatki[[#This Row],[Okres bieżący]]/Podatki[[#This Row],[Budżet]])-1))),\"-\")","v":{"v":0,"d":"0.00%"}}]
[null,"Suma podatków",null,{"$f":"SUBTOTAL(109,Podatki[Okres poprzedni])","v":0},{"$f":"SUBTOTAL(109,Podatki[Budżet])","v":0},{"$f":"SUBTOTAL(109,Podatki[Okres bieżący])","v":0},{"$f":"IFERROR(SUBTOTAL(109,Podatki[Okres bieżący jako procent sprzedaży]),\"-\")","v":{"v":0,"d":"0.00%"}},{"$f":"SUBTOTAL(109,Podatki[Zmiana procentowa względem okresu poprzedniego])","v":{"v":0,"d":"0.00%"}},{"$f":"SUBTOTAL(109,Podatki[Zmiana procentowa względem budżetu])","v":{"v":0,"d":"0.00%"}}]

{"sheet":"Kategorie","index":5,"n_rows":8,"n_cols":2,"rows_kept":8}
[null,"Kategorie"]
[null,"Przychód ze sprzedaży"]
[null,"Koszt sprzedaży"]
[null,"Przychód"]
[null,"Sprzedaż i marketing"]
[null,"Badania i rozwój"]
[null,"Ogólne i administracyjne"]
[null,"Podatki"]